Department Family,Entity,Date,Expense type,Expense area,Supplier,Transaction number,Amount
DBT,ACAS,23/11/2023,TEAM MEETINGS,STRATEGY,BARRAFINA,POIN1991,500
DBT,ACAS,27/11/2023,EXTERNAL LEARNING,ODHR,BELIMINAL LLP,POIN1992,"1,500.00"
DBT,ACAS,30/11/2023,MANAGED SERVICE Off-PAYROLL WK,CAC,MICHAEL PAGE,POIN1993,"1,183.25"
DBT,ACAS,30/11/2023,AGENCY STAFF,DDAT,BECHTLE LIMITED,POIN1994,"8,685.60"
DBT,ACAS,30/11/2023,AGENCY STAFF,DDAT,BECHTLE LIMITED,POIN1994,"8,685.60"
DBT,ACAS,30/11/2023,AGENCY STAFF,DDAT,BECHTLE LIMITED,POIN1995,"3,948.00"
DBT,ACAS,30/11/2023,AGENCY STAFF,DDAT,BECHTLE LIMITED,POIN1995,394.8
DBT,ACAS,30/11/2023,AGENCY STAFF,DDAT,ALEXANDER MANN SOLUTIONS LTD,POIN1996,"3,695.58"
DBT,ACAS,30/11/2023,AGENCY STAFF,DDAT,ALEXANDER MANN SOLUTIONS LTD,POIN1996,"3,695.58"
DBT,ACAS,30/11/2023,EVALUATION OF OPS ACTIVITIES,STRATEGY,NATIONAL CENTRE FOR SOCIAL RESEARCH,POIN1997,"25,200.00"
DBT,ACAS,01/11/2023,OCCUPATIONAL HEALTH SERVICE,F&G,FLEXIFORM BUSINESS FURNITURE LTD,POIN1998,486.48
DBT,ACAS,04/12/2023,MANAGED SERVICE Off-PAYROLL WK,CAC,MICHAEL PAGE,POIN1999,"1,183.25"
DBT,ACAS,26/10/2023,PROFESSIONAL FEES,ADVICE,SNAP SURVEYS LTD,POIN2000,510
DBT,ACAS,27/11/2023,OCCUPATIONAL HEALTH SERVICE,F&G,FLEXIFORM BUSINESS FURNITURE LTD,POIN2001,615.24
DBT,ACAS,05/12/2023,EXTERNAL LEARNING,ODHR,THE STATIONERY OFFICE LTD,POIN2002,"3,402.00"
DBT,ACAS,05/12/2023,AGENCY STAFF,DDAT,BECHTLE LIMITED,POIN2003,"8,685.60"
DBT,ACAS,05/12/2023,AGENCY STAFF,DDAT,BECHTLE LIMITED,POIN2003,"8,685.60"
DBT,ACAS,05/12/2023,EXTERNAL LEARNING - CSL,ODHR,KPMG LLP,POIN2004,"2,103.60"
DBT,ACAS,30/11/2023,AGENCY STAFF,DISPUTE,ALEXANDER MANN SOLUTIONS LTD,POIN2005,645.58
DBT,ACAS,21/11/2023,OCCUPATIONAL HEALTH SERVICE,F&G,FLEXIFORM BUSINESS FURNITURE LTD,POIN2006,409.19
DBT,ACAS,21/11/2023,OCCUPATIONAL HEALTH SERVICE,F&G,FLEXIFORM BUSINESS FURNITURE LTD,POIN2007,409.19
DBT,ACAS,05/12/2023,OCCUPATIONAL HEALTH SERVICE,F&G,FLEXIFORM BUSINESS FURNITURE LTD,POIN2008,409.19
DBT,ACAS,21/11/2023,OCCUPATIONAL HEALTH SERVICE,F&G,FLEXIFORM BUSINESS FURNITURE LTD,POIN2009,409.19
DBT,ACAS,30/11/2023,OCCUPATIONAL HEALTH SERVICE,F&G,FLEXIFORM BUSINESS FURNITURE LTD,POIN2010,409.19
DBT,ACAS,30/11/2023,AGENCY STAFF,DDAT,ALEXANDER MANN SOLUTIONS LTD,POIN2011,"4,090.46"
DBT,ACAS,06/12/2023,AGENCY STAFF,ODHR,MICHAEL PAGE,POIN2012,"1,156.46"
DBT,ACAS,06/12/2023,AGENCY STAFF,ODHR,MICHAEL PAGE,POIN2012,"1,156.46"
DBT,ACAS,01/12/2023,AGENCY STAFF,ODHR,MICHAEL PAGE,POIN2013,"1,156.46"
DBT,ACAS,30/11/2023,PROFESSIONAL FEES,DDAT,TISSKI LTD,POIN2014,"4,500.00"
DBT,ACAS,30/11/2023,PROFESSIONAL FEES,DDAT,TISSKI LTD,POIN2015,"1,800.00"
DBT,ACAS,30/11/2023,PROFESSIONAL FEES,DDAT,VERSION 1 SOLUTIONS LTD,POIN2016,"6,490.00"
DBT,ACAS,30/11/2023,AGENCY STAFF,DISPUTE,ALEXANDER MANN SOLUTIONS LTD,POIN2017,669.6
DBT,ACAS,30/11/2023,PROFESSIONAL FEES,DDAT,TISSKI LTD,POIN2018,"31,950.00"
DBT,ACAS,06/12/2023,PROFESSIONAL FEES,DDAT,BIZZDESIGN UK LTD,POIN2020,"3,750.06"
DBT,ACAS,03/12/2023,PROFESSIONAL FEES,DDAT,W3 PARTNERSHIP LTD,POIN2021,"3,600.00"
DBT,ACAS,03/12/2023,PROFESSIONAL FEES,DDAT,W3 PARTNERSHIP LTD,POIN2021,"1,141.09"
DBT,ACAS,03/12/2023,PROFESSIONAL FEES,DDAT,W3 PARTNERSHIP LTD,POIN2021,35.98
DBT,ACAS,06/12/2023,CONTRACTOR OFF-PAYROLL IN IR35,ODHR,MICHAEL PAGE,POIN2022,"4,263.48"
DBT,ACAS,07/12/2023,AGENCY STAFF,DISPUTE,ALEXANDER MANN SOLUTIONS LTD,POIN2023,653.4
DBT,ACAS,07/12/2023,AGENCY STAFF,DDAT,ALEXANDER MANN SOLUTIONS LTD,POIN2024,"4,601.77"
DBT,ACAS,07/12/2023,AGENCY STAFF,DISPUTE,ALEXANDER MANN SOLUTIONS LTD,POIN2025,645.58
DBT,ACAS,07/12/2023,PROFESSIONAL FEES,DDAT,GAMMA TELECOM LIMITED,POIN2026,"4,462.70"
DBT,ACAS,01/12/2023,PROFESSIONAL FEES,DDAT,SIRIUS OPEN SOURCE LIMITED,POIN2027,"2,560.87"
DBT,ACAS,06/12/2023,PROFESSIONAL FEES,DDAT,PHOENIX SOFTWARE LTD,POIN2028,"2,292.96"
DBT,ACAS,30/11/2023,PROFESSIONAL FEES,DDAT,VERSION 1 SOLUTIONS LTD,POIN2029,"6,000.00"
DBT,ACAS,30/11/2023,PROFESSIONAL FEES,DDAT,VERSION 1 SOLUTIONS LTD,POIN2029,"6,000.00"
DBT,ACAS,30/11/2023,PROFESSIONAL FEES,DDAT,VERSION 1 SOLUTIONS LTD,POIN2029,"4,442.26"
DBT,ACAS,11/12/2023,MANAGED SERVICE Off-PAYROLL WK,CAC,MICHAEL PAGE,POIN2030,"1,183.25"
DBT,ACAS,30/11/2023,RECORDS STORAGE,DDAT,RESTORE RECORDS MANAGEMENT,POIN2031,272.02
DBT,ACAS,30/11/2023,RECORDS STORAGE,DDAT,RESTORE RECORDS MANAGEMENT,POIN2031,53.66
DBT,ACAS,06/12/2023,VENUE HIRE (REC VAT),STRATEGY,RSA ADELPHI ENTERPRISES LTD,POIN2032,"1,131.30"
DBT,ACAS,09/12/2023,MOBILE PHONES,DDAT,TELEFONICA UK LTD (O2),POIN2033,40.37
DBT,ACAS,09/12/2023,MOBILE PHONES,DDAT,TELEFONICA UK LTD (O2),POIN2033,4.49
DBT,ACAS,09/12/2023,MOBILE PHONES,DDAT,TELEFONICA UK LTD (O2),POIN2033,"3,056.60"
DBT,ACAS,09/12/2023,MOBILE PHONES,DDAT,TELEFONICA UK LTD (O2),POIN2033,339.63
DBT,ACAS,09/12/2023,MOBILE PHONES,DDAT,TELEFONICA UK LTD (O2),POIN2033,30.67
DBT,ACAS,09/12/2023,MOBILE PHONES,DDAT,TELEFONICA UK LTD (O2),POIN2033,3.41
DBT,ACAS,09/12/2023,MOBILE PHONES,DDAT,TELEFONICA UK LTD (O2),POIN2033,40.63
DBT,ACAS,09/12/2023,MOBILE PHONES,DDAT,TELEFONICA UK LTD (O2),POIN2033,4.18
DBT,ACAS,30/11/2023,PROFESSIONAL FEES,DDAT,TISSKI LTD,POIN2035,"8,100.00"
DBT,ACAS,30/11/2023,PROFESSIONAL FEES,DDAT,TISSKI LTD,POIN2035,450
DBT,ACAS,07/12/2023,EXTERNAL LEARNING,ODHR,SERCO LIMITED,POIN2036,"5,607.60"
DBT,ACAS,11/12/2023,EXTERNAL LEARNING,ODHR,TOTAL POLITICS GROUP,POIN2037,324
DBT,ACAS,07/12/2023,EXTERNAL LEARNING,ODHR,CAMBRIDGE EMPLOYMENT LAW,POIN2038,300
DBT,ACAS,12/12/2023,OTHER PAYROLL COSTS,F&G,MHR INTERNATIONAL UK LTD,POIN2039,"38,443.08"
DBT,ACAS,12/12/2023,OTHER PAYROLL COSTS,F&G,MHR INTERNATIONAL UK LTD,POIN2039,"-38,443.08"
DBT,ACAS,11/12/2023,PROFESSIONAL FEES,F&G,UK SHARED BUSINESS SERVICES LTD,POIN2040,"1,300.00"
DBT,ACAS,10/12/2023,AGENCY STAFF,ODHR,MICHAEL PAGE,POIN2041,"1,156.46"
DBT,ACAS,08/12/2023,EVALUATION OF OPS ACTIVITIES,STRATEGY,REPUTATION INSTITUTE,POIN2042,"14,400.00"
DBT,ACAS,30/11/2023,PROFESSIONAL FEES,DDAT,WYSER LTD,POIN2043,"70,363.62"
DBT,ACAS,30/11/2023,PROFESSIONAL FEES,DDAT,WYSER LTD,POIN2044,"53,430.05"
DBT,ACAS,30/11/2023,PROFESSIONAL FEES,DDAT,WYSER LTD,POIN2044,"6,489.37"
DBT,ACAS,17/11/2023,PUBLICITY,STRATEGY,CISION,POIN2045,"2,743.00"
DBT,ACAS,20/09/2023,PROFESSIONAL FEES,F&G,GOVERNMENT PROPERTY AGENCY,POIN2046,360
DBT,ACAS,01/12/2023,MEMBERSHIP FEES,F&G,BUSINESS DISABILITY FORUM,POIN2047,"1,734.00"
DBT,ACAS,01/12/2023,MEMBERSHIP FEES,F&G,BUSINESS DISABILITY FORUM,POIN2047,"4,752.00"
DBT,ACAS,01/12/2023,MEMBERSHIP FEES,F&G,BUSINESS DISABILITY FORUM,POIN2047,"3,018.00"
DBT,ACAS,01/12/2023,MEMBERSHIP FEES,F&G,BUSINESS DISABILITY FORUM,POIN2047,900
DBT,ACAS,01/12/2023,MEMBERSHIP FEES,F&G,BUSINESS DISABILITY FORUM,POIN2048,450
DBT,ACAS,01/12/2023,MEMBERSHIP FEES,F&G,BUSINESS DISABILITY FORUM,POIN2048,450
DBT,ACAS,01/12/2023,MEMBERSHIP FEES,F&G,BUSINESS DISABILITY FORUM,POIN2048,-450
DBT,ACAS,01/12/2023,MEMBERSHIP FEES,F&G,BUSINESS DISABILITY FORUM,POIN2048,-450
DBT,ACAS,22/11/2023,OCCUPATIONAL HEALTH SERVICE,F&G,FLEXIFORM BUSINESS FURNITURE LTD,POIN2049,720.78
DBT,ACAS,21/11/2023,OCCUPATIONAL HEALTH SERVICE,F&G,FLEXIFORM BUSINESS FURNITURE LTD,POIN2050,560.4
DBT,ACAS,06/12/2023,OCCUPATIONAL HEALTH SERVICE,F&G,FLEXIFORM BUSINESS FURNITURE LTD,POIN2051,409.19
DBT,ACAS,28/11/2023,OCCUPATIONAL HEALTH SERVICE,F&G,FLEXIFORM BUSINESS FURNITURE LTD,POIN2052,653.62
DBT,ACAS,14/12/2023,AGENCY STAFF,DISPUTE,ALEXANDER MANN SOLUTIONS LTD,POIN2053,645.58
DBT,ACAS,14/12/2023,EXTERNAL LEARNING,ODHR,J B NICHOLLS,POIN2054,"1,650.00"
DBT,ACAS,08/12/2023,EXTERNAL LEARNING,ODHR,PEOPLE RESULTS LTD,POIN2055,"3,178.08"
DBT,ACAS,06/12/2023,PUBLICITY,STRATEGY,MINISTRY OF JUSTICE,POIN2056,"28,484.40"
DBT,ACAS,08/12/2023,SOFTWARE & LICENCES,F&G,IRIS SOFTWARE LTD,POIN2057,"93,062.22"
DBT,ACAS,08/12/2023,SOFTWARE & LICENCES,F&G,IRIS SOFTWARE LTD,POIN2057,0.02
DBT,ACAS,28/09/2023,PUBLICITY,ADVICE,CLICK CONSULT LIMITED,POIN2059,"8,400.00"
DBT,ACAS,14/12/2023,AGENCY STAFF,DISPUTE,ALEXANDER MANN SOLUTIONS LTD,POIN2060,324
DBT,ACAS,16/11/2023,CONTRACTOR OFF-PAYROLL IN IR35,STRATEGY,ALEXANDER MANN SOLUTIONS LTD,POIN2061,"1,260.12"
DBT,ACAS,16/11/2023,CONTRACTOR OFF-PAYROLL IN IR35,STRATEGY,ALEXANDER MANN SOLUTIONS LTD,POIN2061,"1,890.18"
DBT,ACAS,14/12/2023,COMPUTER HARDWARE,DDAT,MATRIX BOOKING LIMITED,POIN2062,612
DBT,ACAS,30/11/2023,PROFESSIONAL FEES,DDAT,TISSKI LTD,POIN2063,"14,400.00"
DBT,ACAS,15/12/2023,AGENCY STAFF,ODHR,MICHAEL PAGE,POIN2064,"1,156.46"
DBT,ACAS,18/12/2023,EXTERNAL LEARNING - CSL,ODHR,ERNST & YOUNG LLP,POIN2066,661.8
DBT,ACAS,18/12/2023,EXTERNAL LEARNING - CSL,ODHR,ERNST & YOUNG LLP,POIN2066,441.2
DBT,ACAS,18/12/2023,EXTERNAL LEARNING - CSL,ODHR,ERNST & YOUNG LLP,POIN2066,441.2
DBT,ACAS,18/12/2023,EXTERNAL LEARNING - CSL,ODHR,ERNST & YOUNG LLP,POIN2066,441.2
DBT,ACAS,19/12/2023,MANAGED SERVICE Off-PAYROLL WK,CAC,MICHAEL PAGE,POIN2067,"1,183.25"
DBT,ACAS,18/12/2023,LEARNING RESOURCE MATERIALS,ODHR,ERNST & YOUNG LLP,POIN2068,638.4
DBT,ACAS,29/11/2023,HARDWARE ADDITIONS,DDAT,TIEVA UK LTD,POIN2069,"62,540.40"
DBT,ACAS,29/11/2023,SYSTEM/EQUIPMENT MAINTENANCE,DDAT,TIEVA UK LTD,POIN2069,"4,138.02"
DBT,ACAS,29/11/2023,SYSTEM/EQUIPMENT MAINTENANCE,DDAT,TIEVA UK LTD,POIN2069,459.78
DBT,ACAS,18/12/2023,EXTERNAL LEARNING - CSL,ODHR,KPMG LLP,POIN2070,"3,589.20"
DBT,ACAS,30/11/2023,OCCUPATIONAL HEALTH SERVICE,ODHR,TP HEALTH LTD,POIN2071,646
DBT,ACAS,18/12/2023,OCCUPATIONAL HEALTH SERVICE,ODHR,TP HEALTH LTD,POIN2072,"3,168.00"
DBT,ACAS,30/11/2023,OCCUPATIONAL HEALTH SERVICE,ODHR,TP HEALTH LTD,POIN2073,778.8
DBT,ACAS,17/12/2023,GOVT SOLICITORS FEES,CO,GOVERNMENT LEGAL DEPARTMENT,POIN2074,"1,758.24"
DBT,ACAS,30/11/2023,OCCUPATIONAL HEALTH SERVICE,F&G,FLEXIFORM BUSINESS FURNITURE LTD,POIN2075,409.19
DBT,ACAS,28/11/2023,OCCUPATIONAL HEALTH SERVICE,F&G,FLEXIFORM BUSINESS FURNITURE LTD,POIN2076,409.19
DBT,ACAS,06/12/2023,AGENCY STAFF,DDAT,BECHTLE LIMITED,POIN2077,"6,711.60"
DBT,ACAS,06/12/2023,AGENCY STAFF,DDAT,BECHTLE LIMITED,POIN2077,394.8
DBT,ACAS,20/12/2023,PROFESSIONAL FEES,DDAT,GOSS INTERACTIVE LTD,POIN2078,"5,896.80"
DBT,ACAS,20/12/2023,PROFESSIONAL FEES,DDAT,GOSS INTERACTIVE LTD,POIN2078,"11,793.60"
DBT,ACAS,01/12/2023,PROFESSIONAL FEES,DDAT,TISSKI LTD,POIN2079,"7,534.00"
DBT,ACAS,20/12/2023,AGENCY STAFF,DISPUTE,ALEXANDER MANN SOLUTIONS LTD,POIN2080,645.58
DBT,ACAS,20/12/2023,AGENCY STAFF,DISPUTE,ALEXANDER MANN SOLUTIONS LTD,POIN2081,480.6
DBT,ACAS,20/12/2023,SYSTEM/EQUIPMENT MAINTENANCE,DDAT,BECHTLE LIMITED,POIN2082,"1,598.29"
DBT,ACAS,20/12/2023,SYSTEM/EQUIPMENT MAINTENANCE,DDAT,BECHTLE LIMITED,POIN2082,177.59
DBT,ACAS,20/12/2023,AGENCY STAFF,DDAT,ALEXANDER MANN SOLUTIONS LTD,POIN2083,"12,934.44"
DBT,ACAS,18/12/2023,OCCUPATIONAL HEALTH SERVICE,F&G,FLEXIFORM BUSINESS FURNITURE LTD,POIN2084,409.19
DBT,ACAS,19/12/2023,OCCUPATIONAL HEALTH SERVICE,F&G,FLEXIFORM BUSINESS FURNITURE LTD,POIN2085,409.19
DBT,ACAS,20/12/2023,MOBILE PHONES,DDAT,TELEFONICA UK LTD (O2),POIN2086,449.03
DBT,ACAS,20/12/2023,MOBILE PHONES,DDAT,TELEFONICA UK LTD (O2),POIN2086,49.89
DBT,ACAS,15/12/2023,OCCUPATIONAL HEALTH SERVICE,F&G,FLEXIFORM BUSINESS FURNITURE LTD,POIN2087,"1,065.72"
DBT,ACAS,20/12/2023,OCCUPATIONAL HEALTH SERVICE,F&G,FLEXIFORM BUSINESS FURNITURE LTD,POIN2088,409.19
DBT,ACAS,15/12/2023,OCCUPATIONAL HEALTH SERVICE,F&G,FLEXIFORM BUSINESS FURNITURE LTD,POIN2089,898.8
DBT,ACAS,22/12/2023,PROFESSIONAL FEES,DDAT,SPECIALIST COMPUTER CENTRES,POIN2090,"1,152.00"
DBT,ACAS,22/12/2023,HARDWARE ADDITIONS,DDAT,SPECIALIST COMPUTER CENTRES,POIN2090,"12,683.50"
DBT,ACAS,22/12/2023,HARDWARE ADDITIONS,DDAT,SPECIALIST COMPUTER CENTRES,POIN2090,274.79
DBT,ACAS,22/12/2023,SOFTWARE & LICENCES,DDAT,SPECIALIST COMPUTER CENTRES,POIN2090,"2,720.70"
DBT,ACAS,22/12/2023,SOFTWARE & LICENCES,DDAT,SPECIALIST COMPUTER CENTRES,POIN2090,"4,190.87"
DBT,ACAS,22/12/2023,PROFESSIONAL FEES,DDAT,SPECIALIST COMPUTER CENTRES,POIN2090,"-1,152.00"
DBT,ACAS,22/12/2023,HARDWARE ADDITIONS,DDAT,SPECIALIST COMPUTER CENTRES,POIN2090,"-12,683.50"
DBT,ACAS,22/12/2023,HARDWARE ADDITIONS,DDAT,SPECIALIST COMPUTER CENTRES,POIN2090,-274.79
DBT,ACAS,22/12/2023,SOFTWARE & LICENCES,DDAT,SPECIALIST COMPUTER CENTRES,POIN2090,"-2,720.70"
DBT,ACAS,22/12/2023,SOFTWARE & LICENCES,DDAT,SPECIALIST COMPUTER CENTRES,POIN2090,"-4,190.87"
DBT,ACAS,19/12/2023,TELEPHONES,DDAT,UNIFY HOLDING UK 1 LIMITED,POIN2091,7.82
DBT,ACAS,19/12/2023,SOFTWARE & LICENCES,DDAT,UNIFY HOLDING UK 1 LIMITED,POIN2091,"1,948.32"
DBT,ACAS,19/12/2023,SOFTWARE & LICENCES,DDAT,UNIFY HOLDING UK 1 LIMITED,POIN2091,"2,406.00"
DBT,ACAS,19/12/2023,SOFTWARE & LICENCES,DDAT,UNIFY HOLDING UK 1 LIMITED,POIN2091,"9,598.81"
DBT,ACAS,19/12/2023,TELEPHONES,DDAT,UNIFY HOLDING UK 1 LIMITED,POIN2091,92.5
DBT,ACAS,19/12/2023,PROFESSIONAL FEES,DDAT,UNIFY HOLDING UK 1 LIMITED,POIN2092,"4,930.79"
DBT,ACAS,20/12/2023,CONTRACTOR OFF-PAYROLL IN IR35,STRATEGY,ALEXANDER MANN SOLUTIONS LTD,POIN2093,"2,078.76"
DBT,ACAS,30/11/2023,PROFESSIONAL FEES,DISPUTE,LANGUAGE EMPIRE LTD,POIN2094,360
DBT,ACAS,30/11/2023,PROFESSIONAL FEES,ADVICE,LANGUAGE EMPIRE LTD,POIN2094,360
DBT,ACAS,30/11/2023,PROFESSIONAL FEES,ODHR,LANGUAGE EMPIRE LTD,POIN2094,360
DBT,ACAS,15/12/2023,PROFESSIONAL FEES,DDAT,PHOENIX SOFTWARE LTD,POIN2095,"17,298.25"
DBT,ACAS,21/12/2023,PROFESSIONAL FEES,DDAT,TISSKI LTD,POIN2096,900
DBT,ACAS,30/11/2023,PROFESSIONAL FEES,DDAT,PANLOGIC LTD,POIN2097,"26,527.50"
DBT,ACAS,22/12/2023,MANAGED SERVICE Off-PAYROLL WK,CAC,MICHAEL PAGE,POIN2098,"1,183.25"
DBT,ACAS,22/12/2023,AGENCY STAFF,ODHR,MICHAEL PAGE,POIN2099,"1,156.46"
DBT,ACAS,20/12/2023,PROFESSIONAL FEES,DDAT,PANLOGIC LTD,POIN2100,"19,582.50"
DBT,ACAS,21/11/2023,EXTERNAL LEARNING,ODHR,ROYAL NATIONAL INSTITUTE FOR THE DEAF,POIN2101,598.8
DBT,ACAS,22/12/2023,PROFESSIONAL FEES,DDAT,OFFICE FOR NATIONAL STATISTICS,POIN2102,"2,400.00"
DBT,ACAS,30/11/2023,REFUNDS,ADVICE,OFFICE FOR NATIONAL STATISTICS,PINV2287,325
DBT,ACAS,30/11/2023,REFUNDS,ADVICE,WOODLAND GLOBAL LTD,PINV2288,325
DBT,ACAS,29/11/2023,TEAM MEETINGS,STRATEGY,HUMDINGERS CATERING LTD,PINV2289,796.2
DBT,ACAS,30/11/2023,RECOGNITION PAYMENTS,CENTRE,EDENRED (UK GROUP ) LTD,PINV2291,"6,600.00"
DBT,ACAS,06/12/2023,PROFESSIONAL FEES,F&G,GOVERNMENT PROPERTY AGENCY,PINV2292,"1,785.00"
DBT,ACAS,06/11/2023,PROFESSIONAL FEES,F&G,GOVERNMENT PROPERTY AGENCY,PINV2293,"4,506.00"
DBT,ACAS,06/11/2023,SERVICE CHARGES,F&G,GOVERNMENT PROPERTY AGENCY,PINV2293,"16,152.40"
DBT,ACAS,06/11/2023,Lease Liability,F&G,GOVERNMENT PROPERTY AGENCY,PINV2293,"9,634.50"
DBT,ACAS,06/11/2023,RATES,F&G,GOVERNMENT PROPERTY AGENCY,PINV2293,"2,030.31"
DBT,ACAS,06/11/2023,PROFESSIONAL FEES,F&G,GOVERNMENT PROPERTY AGENCY,PINV2294,"4,506.00"
DBT,ACAS,06/11/2023,RATES,F&G,GOVERNMENT PROPERTY AGENCY,PINV2294,889.97
DBT,ACAS,06/11/2023,SERVICE CHARGES,F&G,GOVERNMENT PROPERTY AGENCY,PINV2294,"6,704.93"
DBT,ACAS,06/11/2023,Lease Liability,F&G,GOVERNMENT PROPERTY AGENCY,PINV2294,"11,012.75"
DBT,ACAS,06/11/2023,PROFESSIONAL FEES,F&G,GOVERNMENT PROPERTY AGENCY,PINV2295,"6,996.55"
DBT,ACAS,06/11/2023,RATES,F&G,GOVERNMENT PROPERTY AGENCY,PINV2295,"10,802.12"
DBT,ACAS,06/11/2023,SERVICE CHARGES,F&G,GOVERNMENT PROPERTY AGENCY,PINV2295,"32,848.60"
DBT,ACAS,06/11/2023,Lease Liability,F&G,GOVERNMENT PROPERTY AGENCY,PINV2295,"33,099.00"
DBT,ACAS,06/11/2023,FACILITIES MANAGEMENT,F&G,GOVERNMENT PROPERTY AGENCY,PINV2295,"33,164.86"
DBT,ACAS,06/11/2023,PROFESSIONAL FEES,F&G,GOVERNMENT PROPERTY AGENCY,PINV2296,"4,506.00"
DBT,ACAS,06/11/2023,SERVICE CHARGES,F&G,GOVERNMENT PROPERTY AGENCY,PINV2296,"6,787.54"
DBT,ACAS,06/11/2023,RATES,F&G,GOVERNMENT PROPERTY AGENCY,PINV2296,"6,110.36"
DBT,ACAS,06/11/2023,Lease Liability,F&G,GOVERNMENT PROPERTY AGENCY,PINV2296,"15,337.05"
DBT,ACAS,06/11/2023,PROFESSIONAL FEES,F&G,GOVERNMENT PROPERTY AGENCY,PINV2297,"11,271.71"
DBT,ACAS,06/11/2023,SERVICE CHARGES,F&G,GOVERNMENT PROPERTY AGENCY,PINV2297,"1,869.30"
DBT,ACAS,06/11/2023,FACILITIES MANAGEMENT,F&G,GOVERNMENT PROPERTY AGENCY,PINV2297,"17,183.74"
DBT,ACAS,06/11/2023,RATES,F&G,GOVERNMENT PROPERTY AGENCY,PINV2297,"8,877.22"
DBT,ACAS,06/11/2023,Lease Liability,F&G,GOVERNMENT PROPERTY AGENCY,PINV2297,"32,387.63"
DBT,ACAS,06/11/2023,PROFESSIONAL FEES,F&G,GOVERNMENT PROPERTY AGENCY,PINV2298,"3,171.16"
DBT,ACAS,06/11/2023,SERVICE CHARGES,F&G,GOVERNMENT PROPERTY AGENCY,PINV2298,"1,229.16"
DBT,ACAS,06/11/2023,FACILITIES MANAGEMENT,F&G,GOVERNMENT PROPERTY AGENCY,PINV2298,"9,650.40"
DBT,ACAS,06/11/2023,RATES,F&G,GOVERNMENT PROPERTY AGENCY,PINV2298,"5,824.35"
DBT,ACAS,06/11/2023,Lease Liability,F&G,GOVERNMENT PROPERTY AGENCY,PINV2298,"31,500.00"
DBT,ACAS,03/11/2023,PROFESSIONAL FEES,F&G,GOVERNMENT PROPERTY AGENCY,PINV2299,"7,555.50"
DBT,ACAS,03/11/2023,Lease Liability,F&G,GOVERNMENT PROPERTY AGENCY,PINV2299,"45,000.00"
DBT,ACAS,06/11/2023,PROFESSIONAL FEES,F&G,GOVERNMENT PROPERTY AGENCY,PINV2300,"2,518.50"
DBT,ACAS,06/11/2023,Lease Liability,F&G,GOVERNMENT PROPERTY AGENCY,PINV2300,"15,000.00"
DBT,ACAS,06/11/2023,Lease Liability,F&G,GOVERNMENT PROPERTY AGENCY,PINV2302,"5,230.99"
DBT,ACAS,06/11/2023,Lease Liability,F&G,GOVERNMENT PROPERTY AGENCY,PINV2302,"107,262.60"
DBT,ACAS,06/11/2023,SERVICE CHARGES,F&G,GOVERNMENT PROPERTY AGENCY,PINV2302,"2,535.66"
DBT,ACAS,06/11/2023,SERVICE CHARGES,F&G,GOVERNMENT PROPERTY AGENCY,PINV2302,"51,994.32"
DBT,ACAS,06/11/2023,RATES,F&G,GOVERNMENT PROPERTY AGENCY,PINV2302,"2,567.92"
DBT,ACAS,06/11/2023,RATES,F&G,GOVERNMENT PROPERTY AGENCY,PINV2302,"52,655.67"
DBT,ACAS,06/11/2023,PROFESSIONAL FEES,F&G,GOVERNMENT PROPERTY AGENCY,PINV2302,209.53
DBT,ACAS,06/11/2023,PROFESSIONAL FEES,F&G,GOVERNMENT PROPERTY AGENCY,PINV2302,"4,296.47"
DBT,ACAS,06/11/2023,Lease Liability,F&G,GOVERNMENT PROPERTY AGENCY,PINV2302,-561.12
DBT,ACAS,06/11/2023,Lease Liability,F&G,GOVERNMENT PROPERTY AGENCY,PINV2302,"-11,505.93"
DBT,ACAS,17/09/2023,PROFFESIONAL/SPECIALIST ADVICE,DISPUTE,GOVERNMENT LEGAL DEPARTMENT,PINV2303,47.52
DBT,ACAS,17/09/2023,GOVT SOLICITORS FEES,ODHR,GOVERNMENT LEGAL DEPARTMENT,PINV2303,"26,119.09"
DBT,ACAS,11/12/2023,REFUNDS,ADVICE,BOWLES & WYER LTD,PINV2304,425
DBT,ACAS,30/11/2023,MOBILE PHONES,DDAT,ENGAGE HUB LTD,PINV2306,"1,420.00"
DBT,ACAS,30/11/2023,REFUNDS,ADVICE,OFFICE FOR NATIONAL STATISTICS,PINV2307,325
DBT,ACAS,30/11/2023,PUBLIC TRANSPORT & PARKING,F&G,CORPORATE TRAVEL MANAGEMENTLIMITED,PINV2308,216.9
DBT,ACAS,30/11/2023,HOTEL EXPENSES,ADVICE,CORPORATE TRAVEL MANAGEMENTLIMITED,PINV2308,"2,741.66"
DBT,ACAS,30/11/2023,PUBLIC TRANSPORT & PARKING,DDAT,CORPORATE TRAVEL MANAGEMENTLIMITED,PINV2308,176.4
DBT,ACAS,30/11/2023,PUBLIC TRANSPORT & PARKING,F&G,CORPORATE TRAVEL MANAGEMENTLIMITED,PINV2308,181.5
DBT,ACAS,30/11/2023,PUBLIC TRANSPORT & PARKING,DISPUTE,CORPORATE TRAVEL MANAGEMENTLIMITED,PINV2308,162.2
DBT,ACAS,30/11/2023,PUBLIC TRANSPORT & PARKING,DISPUTE,CORPORATE TRAVEL MANAGEMENTLIMITED,PINV2308,66.9
DBT,ACAS,30/11/2023,PUBLIC TRANSPORT & PARKING,ADVICE,CORPORATE TRAVEL MANAGEMENTLIMITED,PINV2308,86.8
DBT,ACAS,30/11/2023,PUBLIC TRANSPORT & PARKING,ADVICE,CORPORATE TRAVEL MANAGEMENTLIMITED,PINV2308,25.1
DBT,ACAS,30/11/2023,PUBLIC TRANSPORT & PARKING,ADVICE,CORPORATE TRAVEL MANAGEMENTLIMITED,PINV2308,97.4
DBT,ACAS,30/11/2023,PUBLIC TRANSPORT & PARKING,DISPUTE,CORPORATE TRAVEL MANAGEMENTLIMITED,PINV2308,35.55
DBT,ACAS,30/11/2023,PUBLIC TRANSPORT & PARKING,ADVICE,CORPORATE TRAVEL MANAGEMENTLIMITED,PINV2308,27.1
DBT,ACAS,30/11/2023,PUBLIC TRANSPORT & PARKING,F&G,CORPORATE TRAVEL MANAGEMENTLIMITED,PINV2308,397
DBT,ACAS,30/11/2023,PUBLIC TRANSPORT & PARKING,ADVICE,CORPORATE TRAVEL MANAGEMENTLIMITED,PINV2308,98
DBT,ACAS,30/11/2023,PUBLIC TRANSPORT & PARKING,ADVICE,CORPORATE TRAVEL MANAGEMENTLIMITED,PINV2308,98
DBT,ACAS,30/11/2023,PUBLIC TRANSPORT & PARKING,ADVICE,CORPORATE TRAVEL MANAGEMENTLIMITED,PINV2308,104.6
DBT,ACAS,30/11/2023,PUBLIC TRANSPORT & PARKING,ADVICE,CORPORATE TRAVEL MANAGEMENTLIMITED,PINV2308,104.6
DBT,ACAS,30/11/2023,PUBLIC TRANSPORT & PARKING,ADVICE,CORPORATE TRAVEL MANAGEMENTLIMITED,PINV2308,64.1
DBT,ACAS,30/11/2023,HOTEL EXPENSES,DISPUTE,CORPORATE TRAVEL MANAGEMENTLIMITED,PINV2308,75.2
DBT,ACAS,30/11/2023,HOTEL EXPENSES,ODHR,CORPORATE TRAVEL MANAGEMENTLIMITED,PINV2308,118.89
DBT,ACAS,30/11/2023,HOTEL EXPENSES,STRATEGY,CORPORATE TRAVEL MANAGEMENTLIMITED,PINV2308,366
DBT,ACAS,30/11/2023,HOTEL EXPENSES,STRATEGY,CORPORATE TRAVEL MANAGEMENTLIMITED,PINV2308,184.5
DBT,ACAS,30/11/2023,HOTEL EXPENSES,ADVICE,CORPORATE TRAVEL MANAGEMENTLIMITED,PINV2308,120
DBT,ACAS,30/11/2023,HOTEL EXPENSES,STRATEGY,CORPORATE TRAVEL MANAGEMENTLIMITED,PINV2308,184.5
DBT,ACAS,30/11/2023,HOTEL EXPENSES,STRATEGY,CORPORATE TRAVEL MANAGEMENTLIMITED,PINV2308,171
DBT,ACAS,30/11/2023,HOTEL EXPENSES,ODHR,CORPORATE TRAVEL MANAGEMENTLIMITED,PINV2308,118.89
DBT,ACAS,30/11/2023,PUBLIC TRANSPORT & PARKING,DISPUTE,CORPORATE TRAVEL MANAGEMENTLIMITED,PINV2308,91.1
DBT,ACAS,30/11/2023,PUBLIC TRANSPORT & PARKING,DISPUTE,CORPORATE TRAVEL MANAGEMENTLIMITED,PINV2308,24.1
DBT,ACAS,30/11/2023,PUBLIC TRANSPORT & PARKING,STRATEGY,CORPORATE TRAVEL MANAGEMENTLIMITED,PINV2308,15.4
DBT,ACAS,30/11/2023,PUBLIC TRANSPORT & PARKING,DISPUTE,CORPORATE TRAVEL MANAGEMENTLIMITED,PINV2308,106.9
DBT,ACAS,30/11/2023,PUBLIC TRANSPORT & PARKING,ADVICE,CORPORATE TRAVEL MANAGEMENTLIMITED,PINV2308,50.4
DBT,ACAS,30/11/2023,PUBLIC TRANSPORT & PARKING,DDAT,CORPORATE TRAVEL MANAGEMENTLIMITED,PINV2308,109.5
DBT,ACAS,30/11/2023,PUBLIC TRANSPORT & PARKING,DISPUTE,CORPORATE TRAVEL MANAGEMENTLIMITED,PINV2308,56.1
DBT,ACAS,30/11/2023,PUBLIC TRANSPORT & PARKING,DISPUTE,CORPORATE TRAVEL MANAGEMENTLIMITED,PINV2308,63.8
DBT,ACAS,30/11/2023,PUBLIC TRANSPORT & PARKING,DISPUTE,CORPORATE TRAVEL MANAGEMENTLIMITED,PINV2308,37.7
DBT,ACAS,30/11/2023,PUBLIC TRANSPORT & PARKING,DDAT,CORPORATE TRAVEL MANAGEMENTLIMITED,PINV2308,132
DBT,ACAS,30/11/2023,HOTEL EXPENSES,ADVICE,CORPORATE TRAVEL MANAGEMENTLIMITED,PINV2308,102.69
DBT,ACAS,30/11/2023,HOTEL EXPENSES,ODHR,CORPORATE TRAVEL MANAGEMENTLIMITED,PINV2308,90.09
DBT,ACAS,30/11/2023,HOTEL EXPENSES,ODHR,CORPORATE TRAVEL MANAGEMENTLIMITED,PINV2308,90.09
DBT,ACAS,30/11/2023,PUBLIC TRANSPORT & PARKING,ADVICE,CORPORATE TRAVEL MANAGEMENTLIMITED,PINV2308,12.7
DBT,ACAS,30/11/2023,PUBLIC TRANSPORT & PARKING,DISPUTE,CORPORATE TRAVEL MANAGEMENTLIMITED,PINV2308,87.2
DBT,ACAS,30/11/2023,PUBLIC TRANSPORT & PARKING,DISPUTE,CORPORATE TRAVEL MANAGEMENTLIMITED,PINV2308,264.1
DBT,ACAS,30/11/2023,PUBLIC TRANSPORT & PARKING,DISPUTE,CORPORATE TRAVEL MANAGEMENTLIMITED,PINV2308,108.8
DBT,ACAS,30/11/2023,PUBLIC TRANSPORT & PARKING,ADVICE,CORPORATE TRAVEL MANAGEMENTLIMITED,PINV2308,98
DBT,ACAS,30/11/2023,PUBLIC TRANSPORT & PARKING,ADVICE,CORPORATE TRAVEL MANAGEMENTLIMITED,PINV2308,128.9
DBT,ACAS,30/11/2023,PUBLIC TRANSPORT & PARKING,DISPUTE,CORPORATE TRAVEL MANAGEMENTLIMITED,PINV2308,62
DBT,ACAS,30/11/2023,PUBLIC TRANSPORT & PARKING,ADVICE,CORPORATE TRAVEL MANAGEMENTLIMITED,PINV2308,73.2
DBT,ACAS,30/11/2023,PUBLIC TRANSPORT & PARKING,ADVICE,CORPORATE TRAVEL MANAGEMENTLIMITED,PINV2308,79
DBT,ACAS,30/11/2023,PUBLIC TRANSPORT & PARKING,ADVICE,CORPORATE TRAVEL MANAGEMENTLIMITED,PINV2308,39.5
DBT,ACAS,30/11/2023,PUBLIC TRANSPORT & PARKING,ADVICE,CORPORATE TRAVEL MANAGEMENTLIMITED,PINV2308,61.7
DBT,ACAS,30/11/2023,PUBLIC TRANSPORT & PARKING,DISPUTE,CORPORATE TRAVEL MANAGEMENTLIMITED,PINV2308,152.6
DBT,ACAS,30/11/2023,PUBLIC TRANSPORT & PARKING,STRATEGY,CORPORATE TRAVEL MANAGEMENTLIMITED,PINV2308,158.65
DBT,ACAS,30/11/2023,PUBLIC TRANSPORT & PARKING,ADVICE,CORPORATE TRAVEL MANAGEMENTLIMITED,PINV2308,67.8
DBT,ACAS,30/11/2023,PUBLIC TRANSPORT & PARKING,DISPUTE,CORPORATE TRAVEL MANAGEMENTLIMITED,PINV2308,74.2
DBT,ACAS,30/11/2023,PUBLIC TRANSPORT & PARKING,ADVICE,CORPORATE TRAVEL MANAGEMENTLIMITED,PINV2308,90.9
DBT,ACAS,30/11/2023,PUBLIC TRANSPORT & PARKING,ADVICE,CORPORATE TRAVEL MANAGEMENTLIMITED,PINV2308,-86
DBT,ACAS,30/11/2023,PUBLIC TRANSPORT & PARKING,DDAT,CORPORATE TRAVEL MANAGEMENTLIMITED,PINV2308,-174.4
DBT,ACAS,30/11/2023,PUBLIC TRANSPORT & PARKING,DISPUTE,CORPORATE TRAVEL MANAGEMENTLIMITED,PINV2308,-77.2
DBT,ACAS,30/11/2023,PUBLIC TRANSPORT & PARKING,ADVICE,CORPORATE TRAVEL MANAGEMENTLIMITED,PINV2308,145.1
DBT,ACAS,30/11/2023,PUBLIC TRANSPORT & PARKING,ADVICE,CORPORATE TRAVEL MANAGEMENTLIMITED,PINV2308,61.2
DBT,ACAS,30/11/2023,PUBLIC TRANSPORT & PARKING,ODHR,CORPORATE TRAVEL MANAGEMENTLIMITED,PINV2308,130.4
DBT,ACAS,30/11/2023,PUBLIC TRANSPORT & PARKING,ODHR,CORPORATE TRAVEL MANAGEMENTLIMITED,PINV2308,209.7
DBT,ACAS,30/11/2023,PUBLIC TRANSPORT & PARKING,DISPUTE,CORPORATE TRAVEL MANAGEMENTLIMITED,PINV2308,108.6
DBT,ACAS,30/11/2023,PUBLIC TRANSPORT & PARKING,DISPUTE,CORPORATE TRAVEL MANAGEMENTLIMITED,PINV2308,108.6
DBT,ACAS,30/11/2023,PUBLIC TRANSPORT & PARKING,DISPUTE,CORPORATE TRAVEL MANAGEMENTLIMITED,PINV2308,108.6
DBT,ACAS,30/11/2023,PUBLIC TRANSPORT & PARKING,DISPUTE,CORPORATE TRAVEL MANAGEMENTLIMITED,PINV2308,108.6
DBT,ACAS,30/11/2023,PUBLIC TRANSPORT & PARKING,DISPUTE,CORPORATE TRAVEL MANAGEMENTLIMITED,PINV2308,38.3
DBT,ACAS,30/11/2023,PUBLIC TRANSPORT & PARKING,DISPUTE,CORPORATE TRAVEL MANAGEMENTLIMITED,PINV2308,262
DBT,ACAS,30/11/2023,PUBLIC TRANSPORT & PARKING,DISPUTE,CORPORATE TRAVEL MANAGEMENTLIMITED,PINV2308,24.9
DBT,ACAS,30/11/2023,PUBLIC TRANSPORT & PARKING,ADVICE,CORPORATE TRAVEL MANAGEMENTLIMITED,PINV2308,43.4
DBT,ACAS,30/11/2023,PUBLIC TRANSPORT & PARKING,ADVICE,CORPORATE TRAVEL MANAGEMENTLIMITED,PINV2308,61.6
DBT,ACAS,30/11/2023,PUBLIC TRANSPORT & PARKING,ADVICE,CORPORATE TRAVEL MANAGEMENTLIMITED,PINV2308,39.5
DBT,ACAS,30/11/2023,HOTEL EXPENSES,STRATEGY,CORPORATE TRAVEL MANAGEMENTLIMITED,PINV2308,318
DBT,ACAS,30/11/2023,PUBLIC TRANSPORT & PARKING,ADVICE,CORPORATE TRAVEL MANAGEMENTLIMITED,PINV2308,60.1
DBT,ACAS,30/11/2023,PUBLIC TRANSPORT & PARKING,ADVICE,CORPORATE TRAVEL MANAGEMENTLIMITED,PINV2308,118.8
DBT,ACAS,30/11/2023,PUBLIC TRANSPORT & PARKING,DISPUTE,CORPORATE TRAVEL MANAGEMENTLIMITED,PINV2308,61.6
DBT,ACAS,30/11/2023,HOTEL EXPENSES,STRATEGY,CORPORATE TRAVEL MANAGEMENTLIMITED,PINV2308,204.18
DBT,ACAS,30/11/2023,HOTEL EXPENSES,STRATEGY,CORPORATE TRAVEL MANAGEMENTLIMITED,PINV2308,204.18
DBT,ACAS,30/11/2023,HOTEL EXPENSES,DISPUTE,CORPORATE TRAVEL MANAGEMENTLIMITED,PINV2308,71
DBT,ACAS,30/11/2023,HOTEL EXPENSES,DISPUTE,CORPORATE TRAVEL MANAGEMENTLIMITED,PINV2308,61
DBT,ACAS,30/11/2023,PUBLIC TRANSPORT & PARKING,F&G,CORPORATE TRAVEL MANAGEMENTLIMITED,PINV2308,121.3
DBT,ACAS,30/11/2023,HOTEL EXPENSES,ADVICE,CORPORATE TRAVEL MANAGEMENTLIMITED,PINV2308,68.33
DBT,ACAS,30/11/2023,PUBLIC TRANSPORT & PARKING,F&G,CORPORATE TRAVEL MANAGEMENTLIMITED,PINV2308,274
DBT,ACAS,30/11/2023,PUBLIC TRANSPORT & PARKING,ODHR,CORPORATE TRAVEL MANAGEMENTLIMITED,PINV2308,280.4
DBT,ACAS,30/11/2023,HOTEL EXPENSES,DISPUTE,CORPORATE TRAVEL MANAGEMENTLIMITED,PINV2308,329.4
DBT,ACAS,30/11/2023,HOTEL EXPENSES,ADVICE,CORPORATE TRAVEL MANAGEMENTLIMITED,PINV2308,82.5
DBT,ACAS,30/11/2023,HOTEL EXPENSES,ADVICE,CORPORATE TRAVEL MANAGEMENTLIMITED,PINV2308,136
DBT,ACAS,30/11/2023,PUBLIC TRANSPORT & PARKING,ADVICE,CORPORATE TRAVEL MANAGEMENTLIMITED,PINV2308,61.6
DBT,ACAS,30/11/2023,PUBLIC TRANSPORT & PARKING,ADVICE,CORPORATE TRAVEL MANAGEMENTLIMITED,PINV2308,22.9
DBT,ACAS,30/11/2023,HOTEL EXPENSES,DISPUTE,CORPORATE TRAVEL MANAGEMENTLIMITED,PINV2308,192.4
DBT,ACAS,30/11/2023,HOTEL EXPENSES,ADVICE,CORPORATE TRAVEL MANAGEMENTLIMITED,PINV2308,151
DBT,ACAS,30/11/2023,PUBLIC TRANSPORT & PARKING,ODHR,CORPORATE TRAVEL MANAGEMENTLIMITED,PINV2308,84.3
DBT,ACAS,30/11/2023,PUBLIC TRANSPORT & PARKING,ODHR,CORPORATE TRAVEL MANAGEMENTLIMITED,PINV2308,56.63
DBT,ACAS,30/11/2023,PUBLIC TRANSPORT & PARKING,ODHR,CORPORATE TRAVEL MANAGEMENTLIMITED,PINV2308,349.8
DBT,ACAS,30/11/2023,PUBLIC TRANSPORT & PARKING,ODHR,CORPORATE TRAVEL MANAGEMENTLIMITED,PINV2308,104.9
DBT,ACAS,30/11/2023,PUBLIC TRANSPORT & PARKING,ADVICE,CORPORATE TRAVEL MANAGEMENTLIMITED,PINV2308,194.8
DBT,ACAS,30/11/2023,PUBLIC TRANSPORT & PARKING,F&G,CORPORATE TRAVEL MANAGEMENTLIMITED,PINV2308,28.8
DBT,ACAS,30/11/2023,PUBLIC TRANSPORT & PARKING,STRATEGY,CORPORATE TRAVEL MANAGEMENTLIMITED,PINV2308,203.1
DBT,ACAS,30/11/2023,PUBLIC TRANSPORT & PARKING,STRATEGY,CORPORATE TRAVEL MANAGEMENTLIMITED,PINV2308,190.8
DBT,ACAS,30/11/2023,PUBLIC TRANSPORT & PARKING,DISPUTE,CORPORATE TRAVEL MANAGEMENTLIMITED,PINV2308,117
DBT,ACAS,30/11/2023,PUBLIC TRANSPORT & PARKING,F&G,CORPORATE TRAVEL MANAGEMENTLIMITED,PINV2308,52
DBT,ACAS,30/11/2023,PUBLIC TRANSPORT & PARKING,F&G,CORPORATE TRAVEL MANAGEMENTLIMITED,PINV2308,61.5
DBT,ACAS,30/11/2023,PUBLIC TRANSPORT & PARKING,STRATEGY,CORPORATE TRAVEL MANAGEMENTLIMITED,PINV2308,176.6
DBT,ACAS,30/11/2023,PUBLIC TRANSPORT & PARKING,DISPUTE,CORPORATE TRAVEL MANAGEMENTLIMITED,PINV2308,121.1
DBT,ACAS,30/11/2023,HOTEL EXPENSES,ADVICE,CORPORATE TRAVEL MANAGEMENTLIMITED,PINV2308,200
DBT,ACAS,30/11/2023,HOTEL EXPENSES,DISPUTE,CORPORATE TRAVEL MANAGEMENTLIMITED,PINV2308,192.4
DBT,ACAS,30/11/2023,HOTEL EXPENSES,DISPUTE,CORPORATE TRAVEL MANAGEMENTLIMITED,PINV2308,192.4
DBT,ACAS,30/11/2023,HOTEL EXPENSES,DISPUTE,CORPORATE TRAVEL MANAGEMENTLIMITED,PINV2308,150.4
DBT,ACAS,30/11/2023,PUBLIC TRANSPORT & PARKING,ADVICE,CORPORATE TRAVEL MANAGEMENTLIMITED,PINV2308,32.8
DBT,ACAS,30/11/2023,PUBLIC TRANSPORT & PARKING,DISPUTE,CORPORATE TRAVEL MANAGEMENTLIMITED,PINV2308,184.7
DBT,ACAS,30/11/2023,PUBLIC TRANSPORT & PARKING,DISPUTE,CORPORATE TRAVEL MANAGEMENTLIMITED,PINV2308,69
DBT,ACAS,30/11/2023,PUBLIC TRANSPORT & PARKING,ADVICE,CORPORATE TRAVEL MANAGEMENTLIMITED,PINV2308,149.8
DBT,ACAS,30/11/2023,PUBLIC TRANSPORT & PARKING,ADVICE,CORPORATE TRAVEL MANAGEMENTLIMITED,PINV2308,39.1
DBT,ACAS,30/11/2023,PUBLIC TRANSPORT & PARKING,STRATEGY,CORPORATE TRAVEL MANAGEMENTLIMITED,PINV2308,96.5
DBT,ACAS,30/11/2023,PUBLIC TRANSPORT & PARKING,STRATEGY,CORPORATE TRAVEL MANAGEMENTLIMITED,PINV2308,176.4
DBT,ACAS,30/11/2023,PUBLIC TRANSPORT & PARKING,STRATEGY,CORPORATE TRAVEL MANAGEMENTLIMITED,PINV2308,48.9
DBT,ACAS,30/11/2023,PUBLIC TRANSPORT & PARKING,ODHR,CORPORATE TRAVEL MANAGEMENTLIMITED,PINV2308,80.3
DBT,ACAS,30/11/2023,PUBLIC TRANSPORT & PARKING,ADVICE,CORPORATE TRAVEL MANAGEMENTLIMITED,PINV2308,108.4
DBT,ACAS,30/11/2023,PUBLIC TRANSPORT & PARKING,DISPUTE,CORPORATE TRAVEL MANAGEMENTLIMITED,PINV2308,257.1
DBT,ACAS,30/11/2023,PUBLIC TRANSPORT & PARKING,DISPUTE,CORPORATE TRAVEL MANAGEMENTLIMITED,PINV2308,257.1
DBT,ACAS,30/11/2023,PUBLIC TRANSPORT & PARKING,F&G,CORPORATE TRAVEL MANAGEMENTLIMITED,PINV2308,274
DBT,ACAS,30/11/2023,PUBLIC TRANSPORT & PARKING,ODHR,CORPORATE TRAVEL MANAGEMENTLIMITED,PINV2308,76
DBT,ACAS,30/11/2023,PUBLIC TRANSPORT & PARKING,ODHR,CORPORATE TRAVEL MANAGEMENTLIMITED,PINV2308,65.8
DBT,ACAS,30/11/2023,PUBLIC TRANSPORT & PARKING,STRATEGY,CORPORATE TRAVEL MANAGEMENTLIMITED,PINV2308,95
DBT,ACAS,30/11/2023,PUBLIC TRANSPORT & PARKING,STRATEGY,CORPORATE TRAVEL MANAGEMENTLIMITED,PINV2308,4.6
DBT,ACAS,30/11/2023,PUBLIC TRANSPORT & PARKING,DDAT,CORPORATE TRAVEL MANAGEMENTLIMITED,PINV2308,176.4
DBT,ACAS,30/11/2023,PUBLIC TRANSPORT & PARKING,DDAT,CORPORATE TRAVEL MANAGEMENTLIMITED,PINV2308,157
DBT,ACAS,30/11/2023,PUBLIC TRANSPORT & PARKING,ADVICE,CORPORATE TRAVEL MANAGEMENTLIMITED,PINV2308,231.4
DBT,ACAS,30/11/2023,PUBLIC TRANSPORT & PARKING,DDAT,CORPORATE TRAVEL MANAGEMENTLIMITED,PINV2308,176.4
DBT,ACAS,30/11/2023,PUBLIC TRANSPORT & PARKING,DDAT,CORPORATE TRAVEL MANAGEMENTLIMITED,PINV2308,176.4
DBT,ACAS,30/11/2023,PUBLIC TRANSPORT & PARKING,DISPUTE,CORPORATE TRAVEL MANAGEMENTLIMITED,PINV2308,52.5
DBT,ACAS,30/11/2023,PUBLIC TRANSPORT & PARKING,DDAT,CORPORATE TRAVEL MANAGEMENTLIMITED,PINV2308,156.5
DBT,ACAS,30/11/2023,PUBLIC TRANSPORT & PARKING,STRATEGY,CORPORATE TRAVEL MANAGEMENTLIMITED,PINV2308,159.4
DBT,ACAS,30/11/2023,PUBLIC TRANSPORT & PARKING,DISPUTE,CORPORATE TRAVEL MANAGEMENTLIMITED,PINV2308,348.6
DBT,ACAS,30/11/2023,PUBLIC TRANSPORT & PARKING,DDAT,CORPORATE TRAVEL MANAGEMENTLIMITED,PINV2308,258.8
DBT,ACAS,30/11/2023,PUBLIC TRANSPORT & PARKING,F&G,CORPORATE TRAVEL MANAGEMENTLIMITED,PINV2308,214.5
DBT,ACAS,30/11/2023,PUBLIC TRANSPORT & PARKING,F&G,CORPORATE TRAVEL MANAGEMENTLIMITED,PINV2308,391.6
DBT,ACAS,30/11/2023,PUBLIC TRANSPORT & PARKING,ADVICE,CORPORATE TRAVEL MANAGEMENTLIMITED,PINV2308,27.6
DBT,ACAS,30/11/2023,PUBLIC TRANSPORT & PARKING,ADVICE,CORPORATE TRAVEL MANAGEMENTLIMITED,PINV2308,44
DBT,ACAS,30/11/2023,PUBLIC TRANSPORT & PARKING,ODHR,CORPORATE TRAVEL MANAGEMENTLIMITED,PINV2308,160
DBT,ACAS,30/11/2023,PUBLIC TRANSPORT & PARKING,DISPUTE,CORPORATE TRAVEL MANAGEMENTLIMITED,PINV2308,279.3
DBT,ACAS,30/11/2023,PUBLIC TRANSPORT & PARKING,DISPUTE,CORPORATE TRAVEL MANAGEMENTLIMITED,PINV2308,93.4
DBT,ACAS,30/11/2023,PUBLIC TRANSPORT & PARKING,DDAT,CORPORATE TRAVEL MANAGEMENTLIMITED,PINV2308,70
DBT,ACAS,30/11/2023,PUBLIC TRANSPORT & PARKING,DDAT,CORPORATE TRAVEL MANAGEMENTLIMITED,PINV2308,203.2
DBT,ACAS,30/11/2023,PUBLIC TRANSPORT & PARKING,ODHR,CORPORATE TRAVEL MANAGEMENTLIMITED,PINV2308,102.8
DBT,ACAS,30/11/2023,HOTEL EXPENSES,ADVICE,CORPORATE TRAVEL MANAGEMENTLIMITED,PINV2308,63.75
DBT,ACAS,30/11/2023,HOTEL EXPENSES,ADVICE,CORPORATE TRAVEL MANAGEMENTLIMITED,PINV2308,85
DBT,ACAS,30/11/2023,HOTEL EXPENSES,ADVICE,CORPORATE TRAVEL MANAGEMENTLIMITED,PINV2308,76.5
DBT,ACAS,30/11/2023,PUBLIC TRANSPORT & PARKING,ADVICE,CORPORATE TRAVEL MANAGEMENTLIMITED,PINV2308,-24.9
DBT,ACAS,30/11/2023,PUBLIC TRANSPORT & PARKING,DISPUTE,CORPORATE TRAVEL MANAGEMENTLIMITED,PINV2308,241.4
DBT,ACAS,30/11/2023,PUBLIC TRANSPORT & PARKING,ADVICE,CORPORATE TRAVEL MANAGEMENTLIMITED,PINV2308,18.6
DBT,ACAS,30/11/2023,PUBLIC TRANSPORT & PARKING,STRATEGY,CORPORATE TRAVEL MANAGEMENTLIMITED,PINV2308,-56.7
DBT,ACAS,30/11/2023,PUBLIC TRANSPORT & PARKING,DDAT,CORPORATE TRAVEL MANAGEMENTLIMITED,PINV2308,157
DBT,ACAS,30/11/2023,PUBLIC TRANSPORT & PARKING,DISPUTE,CORPORATE TRAVEL MANAGEMENTLIMITED,PINV2308,157.2
DBT,ACAS,30/11/2023,PUBLIC TRANSPORT & PARKING,DISPUTE,CORPORATE TRAVEL MANAGEMENTLIMITED,PINV2308,57.4
DBT,ACAS,30/11/2023,PUBLIC TRANSPORT & PARKING,STRATEGY,CORPORATE TRAVEL MANAGEMENTLIMITED,PINV2308,156
DBT,ACAS,30/11/2023,PUBLIC TRANSPORT & PARKING,F&G,CORPORATE TRAVEL MANAGEMENTLIMITED,PINV2308,102.2
DBT,ACAS,30/11/2023,PUBLIC TRANSPORT & PARKING,ODHR,CORPORATE TRAVEL MANAGEMENTLIMITED,PINV2308,85.4
DBT,ACAS,30/11/2023,PUBLIC TRANSPORT & PARKING,ODHR,CORPORATE TRAVEL MANAGEMENTLIMITED,PINV2308,116.4
DBT,ACAS,30/11/2023,PUBLIC TRANSPORT & PARKING,DDAT,CORPORATE TRAVEL MANAGEMENTLIMITED,PINV2308,258.8
DBT,ACAS,30/11/2023,PUBLIC TRANSPORT & PARKING,F&G,CORPORATE TRAVEL MANAGEMENTLIMITED,PINV2308,200
DBT,ACAS,30/11/2023,PUBLIC TRANSPORT & PARKING,ODHR,CORPORATE TRAVEL MANAGEMENTLIMITED,PINV2308,188
DBT,ACAS,30/11/2023,HOTEL EXPENSES,ODHR,CORPORATE TRAVEL MANAGEMENTLIMITED,PINV2308,81
DBT,ACAS,30/11/2023,HOTEL EXPENSES,ADVICE,CORPORATE TRAVEL MANAGEMENTLIMITED,PINV2308,174.3
DBT,ACAS,30/11/2023,HOTEL EXPENSES,ADVICE,CORPORATE TRAVEL MANAGEMENTLIMITED,PINV2308,718.95
DBT,ACAS,30/11/2023,HOTEL EXPENSES,DISPUTE,CORPORATE TRAVEL MANAGEMENTLIMITED,PINV2308,104.49
DBT,ACAS,30/11/2023,HOTEL EXPENSES,DISPUTE,CORPORATE TRAVEL MANAGEMENTLIMITED,PINV2308,74
DBT,ACAS,30/11/2023,HOTEL EXPENSES,DISPUTE,CORPORATE TRAVEL MANAGEMENTLIMITED,PINV2308,81
DBT,ACAS,30/11/2023,HOTEL EXPENSES,ADVICE,CORPORATE TRAVEL MANAGEMENTLIMITED,PINV2308,87.15
DBT,ACAS,30/11/2023,HOTEL EXPENSES,ADVICE,CORPORATE TRAVEL MANAGEMENTLIMITED,PINV2308,106.25
DBT,ACAS,30/11/2023,HOTEL EXPENSES,ADVICE,CORPORATE TRAVEL MANAGEMENTLIMITED,PINV2308,180
DBT,ACAS,30/11/2023,HOTEL EXPENSES,DISPUTE,CORPORATE TRAVEL MANAGEMENTLIMITED,PINV2308,88
DBT,ACAS,30/11/2023,HOTEL EXPENSES,ADVICE,CORPORATE TRAVEL MANAGEMENTLIMITED,PINV2308,174.3
DBT,ACAS,30/11/2023,HOTEL EXPENSES,DISPUTE,CORPORATE TRAVEL MANAGEMENTLIMITED,PINV2308,81
DBT,ACAS,30/11/2023,HOTEL EXPENSES,DISPUTE,CORPORATE TRAVEL MANAGEMENTLIMITED,PINV2308,81
DBT,ACAS,30/11/2023,HOTEL EXPENSES,DISPUTE,CORPORATE TRAVEL MANAGEMENTLIMITED,PINV2308,70.29
DBT,ACAS,30/11/2023,HOTEL EXPENSES,ADVICE,CORPORATE TRAVEL MANAGEMENTLIMITED,PINV2308,174.3
DBT,ACAS,30/11/2023,HOTEL EXPENSES,DISPUTE,CORPORATE TRAVEL MANAGEMENTLIMITED,PINV2308,85.5
DBT,ACAS,30/11/2023,HOTEL EXPENSES,DISPUTE,CORPORATE TRAVEL MANAGEMENTLIMITED,PINV2308,80
DBT,ACAS,30/11/2023,HOTEL EXPENSES,DISPUTE,CORPORATE TRAVEL MANAGEMENTLIMITED,PINV2308,76.5
DBT,ACAS,30/11/2023,PUBLIC TRANSPORT & PARKING,DDAT,CORPORATE TRAVEL MANAGEMENTLIMITED,PINV2308,94.9
DBT,ACAS,30/11/2023,PUBLIC TRANSPORT & PARKING,F&G,CORPORATE TRAVEL MANAGEMENTLIMITED,PINV2308,172.6
DBT,ACAS,30/11/2023,PUBLIC TRANSPORT & PARKING,ODHR,CORPORATE TRAVEL MANAGEMENTLIMITED,PINV2308,286.4
DBT,ACAS,30/11/2023,PUBLIC TRANSPORT & PARKING,DISPUTE,CORPORATE TRAVEL MANAGEMENTLIMITED,PINV2308,113.9
DBT,ACAS,30/11/2023,HOTEL EXPENSES,ADVICE,CORPORATE TRAVEL MANAGEMENTLIMITED,PINV2308,174.3
DBT,ACAS,30/11/2023,HOTEL EXPENSES,ADVICE,CORPORATE TRAVEL MANAGEMENTLIMITED,PINV2308,66
DBT,ACAS,30/11/2023,PUBLIC TRANSPORT & PARKING,DISPUTE,CORPORATE TRAVEL MANAGEMENTLIMITED,PINV2308,131.2
DBT,ACAS,30/11/2023,PUBLIC TRANSPORT & PARKING,CAC,CORPORATE TRAVEL MANAGEMENTLIMITED,PINV2308,121.2
DBT,ACAS,30/11/2023,PUBLIC TRANSPORT & PARKING,DISPUTE,CORPORATE TRAVEL MANAGEMENTLIMITED,PINV2308,161.9
DBT,ACAS,30/11/2023,PUBLIC TRANSPORT & PARKING,DISPUTE,CORPORATE TRAVEL MANAGEMENTLIMITED,PINV2308,123.2
DBT,ACAS,30/11/2023,PUBLIC TRANSPORT & PARKING,DDAT,CORPORATE TRAVEL MANAGEMENTLIMITED,PINV2308,65.95
DBT,ACAS,30/11/2023,HOTEL EXPENSES,DISPUTE,CORPORATE TRAVEL MANAGEMENTLIMITED,PINV2308,89
DBT,ACAS,30/11/2023,HOTEL EXPENSES,STRATEGY,CORPORATE TRAVEL MANAGEMENTLIMITED,PINV2308,390.5
DBT,ACAS,30/11/2023,PUBLIC TRANSPORT & PARKING,ADVICE,CORPORATE TRAVEL MANAGEMENTLIMITED,PINV2308,51.4
DBT,ACAS,30/11/2023,PUBLIC TRANSPORT & PARKING,DISPUTE,CORPORATE TRAVEL MANAGEMENTLIMITED,PINV2308,9.9
DBT,ACAS,30/11/2023,PUBLIC TRANSPORT & PARKING,DDAT,CORPORATE TRAVEL MANAGEMENTLIMITED,PINV2308,133.5
DBT,ACAS,30/11/2023,PUBLIC TRANSPORT & PARKING,F&G,CORPORATE TRAVEL MANAGEMENTLIMITED,PINV2308,194
DBT,ACAS,30/11/2023,PUBLIC TRANSPORT & PARKING,DISPUTE,CORPORATE TRAVEL MANAGEMENTLIMITED,PINV2308,53.4
DBT,ACAS,30/11/2023,PUBLIC TRANSPORT & PARKING,DDAT,CORPORATE TRAVEL MANAGEMENTLIMITED,PINV2308,69.6
DBT,ACAS,30/11/2023,PUBLIC TRANSPORT & PARKING,DISPUTE,CORPORATE TRAVEL MANAGEMENTLIMITED,PINV2308,385.6
DBT,ACAS,30/11/2023,PUBLIC TRANSPORT & PARKING,DISPUTE,CORPORATE TRAVEL MANAGEMENTLIMITED,PINV2308,385.6
DBT,ACAS,30/11/2023,PUBLIC TRANSPORT & PARKING,DISPUTE,CORPORATE TRAVEL MANAGEMENTLIMITED,PINV2308,130.8
DBT,ACAS,30/11/2023,HOTEL EXPENSES,DISPUTE,CORPORATE TRAVEL MANAGEMENTLIMITED,PINV2308,103
DBT,ACAS,30/11/2023,PUBLIC TRANSPORT & PARKING,ODHR,CORPORATE TRAVEL MANAGEMENTLIMITED,PINV2308,89.8
DBT,ACAS,30/11/2023,PUBLIC TRANSPORT & PARKING,DISPUTE,CORPORATE TRAVEL MANAGEMENTLIMITED,PINV2308,10.3
DBT,ACAS,30/11/2023,PUBLIC TRANSPORT & PARKING,DISPUTE,CORPORATE TRAVEL MANAGEMENTLIMITED,PINV2308,215
DBT,ACAS,30/11/2023,PUBLIC TRANSPORT & PARKING,DISPUTE,CORPORATE TRAVEL MANAGEMENTLIMITED,PINV2308,53.6
DBT,ACAS,30/11/2023,PUBLIC TRANSPORT & PARKING,DISPUTE,CORPORATE TRAVEL MANAGEMENTLIMITED,PINV2308,53.6
DBT,ACAS,30/11/2023,PUBLIC TRANSPORT & PARKING,ODHR,CORPORATE TRAVEL MANAGEMENTLIMITED,PINV2308,135.5
DBT,ACAS,30/11/2023,PUBLIC TRANSPORT & PARKING,DDAT,CORPORATE TRAVEL MANAGEMENTLIMITED,PINV2308,64
DBT,ACAS,30/11/2023,PUBLIC TRANSPORT & PARKING,DDAT,CORPORATE TRAVEL MANAGEMENTLIMITED,PINV2308,64
DBT,ACAS,30/11/2023,PUBLIC TRANSPORT & PARKING,DISPUTE,CORPORATE TRAVEL MANAGEMENTLIMITED,PINV2308,21
DBT,ACAS,30/11/2023,PUBLIC TRANSPORT & PARKING,F&G,CORPORATE TRAVEL MANAGEMENTLIMITED,PINV2308,266.9
DBT,ACAS,30/11/2023,PUBLIC TRANSPORT & PARKING,DDAT,CORPORATE TRAVEL MANAGEMENTLIMITED,PINV2308,64
DBT,ACAS,30/11/2023,HOTEL EXPENSES,DDAT,CORPORATE TRAVEL MANAGEMENTLIMITED,PINV2308,275.72
DBT,ACAS,30/11/2023,HOTEL EXPENSES,DISPUTE,CORPORATE TRAVEL MANAGEMENTLIMITED,PINV2308,109
DBT,ACAS,30/11/2023,HOTEL EXPENSES,STRATEGY,CORPORATE TRAVEL MANAGEMENTLIMITED,PINV2308,206.1
DBT,ACAS,30/11/2023,HOTEL EXPENSES,STRATEGY,CORPORATE TRAVEL MANAGEMENTLIMITED,PINV2308,317
DBT,ACAS,30/11/2023,HOTEL EXPENSES,DDAT,CORPORATE TRAVEL MANAGEMENTLIMITED,PINV2308,176
DBT,ACAS,30/11/2023,HOTEL EXPENSES,DDAT,CORPORATE TRAVEL MANAGEMENTLIMITED,PINV2308,499.38
DBT,ACAS,30/11/2023,HOTEL EXPENSES,DDAT,CORPORATE TRAVEL MANAGEMENTLIMITED,PINV2308,352
DBT,ACAS,30/11/2023,HOTEL EXPENSES,STRATEGY,CORPORATE TRAVEL MANAGEMENTLIMITED,PINV2308,184.5
DBT,ACAS,30/11/2023,HOTEL EXPENSES,DISPUTE,CORPORATE TRAVEL MANAGEMENTLIMITED,PINV2308,81.99
DBT,ACAS,30/11/2023,PUBLIC TRANSPORT & PARKING,STRATEGY,CORPORATE TRAVEL MANAGEMENTLIMITED,PINV2308,129.3
DBT,ACAS,30/11/2023,PUBLIC TRANSPORT & PARKING,DISPUTE,CORPORATE TRAVEL MANAGEMENTLIMITED,PINV2308,28.9
DBT,ACAS,30/11/2023,PUBLIC TRANSPORT & PARKING,DISPUTE,CORPORATE TRAVEL MANAGEMENTLIMITED,PINV2308,52.5
DBT,ACAS,30/11/2023,PUBLIC TRANSPORT & PARKING,DDAT,CORPORATE TRAVEL MANAGEMENTLIMITED,PINV2308,223.1
DBT,ACAS,30/11/2023,PUBLIC TRANSPORT & PARKING,DISPUTE,CORPORATE TRAVEL MANAGEMENTLIMITED,PINV2308,29.4
DBT,ACAS,30/11/2023,PUBLIC TRANSPORT & PARKING,DISPUTE,CORPORATE TRAVEL MANAGEMENTLIMITED,PINV2308,29.4
DBT,ACAS,30/11/2023,PUBLIC TRANSPORT & PARKING,STRATEGY,CORPORATE TRAVEL MANAGEMENTLIMITED,PINV2308,89.5
DBT,ACAS,30/11/2023,PUBLIC TRANSPORT & PARKING,DISPUTE,CORPORATE TRAVEL MANAGEMENTLIMITED,PINV2308,48.9
DBT,ACAS,30/11/2023,PUBLIC TRANSPORT & PARKING,DISPUTE,CORPORATE TRAVEL MANAGEMENTLIMITED,PINV2308,228.2
DBT,ACAS,30/11/2023,PUBLIC TRANSPORT & PARKING,DISPUTE,CORPORATE TRAVEL MANAGEMENTLIMITED,PINV2308,228.2
DBT,ACAS,30/11/2023,PUBLIC TRANSPORT & PARKING,F&G,CORPORATE TRAVEL MANAGEMENTLIMITED,PINV2308,135.1
DBT,ACAS,30/11/2023,PUBLIC TRANSPORT & PARKING,DDAT,CORPORATE TRAVEL MANAGEMENTLIMITED,PINV2308,257.9
DBT,ACAS,30/11/2023,PUBLIC TRANSPORT & PARKING,ODHR,CORPORATE TRAVEL MANAGEMENTLIMITED,PINV2308,294
DBT,ACAS,30/11/2023,PUBLIC TRANSPORT & PARKING,ADVICE,CORPORATE TRAVEL MANAGEMENTLIMITED,PINV2308,179
DBT,ACAS,30/11/2023,PUBLIC TRANSPORT & PARKING,DDAT,CORPORATE TRAVEL MANAGEMENTLIMITED,PINV2308,112
DBT,ACAS,30/11/2023,PUBLIC TRANSPORT & PARKING,F&G,CORPORATE TRAVEL MANAGEMENTLIMITED,PINV2308,103.9
DBT,ACAS,30/11/2023,PUBLIC TRANSPORT & PARKING,STRATEGY,CORPORATE TRAVEL MANAGEMENTLIMITED,PINV2308,187.8
DBT,ACAS,30/11/2023,PUBLIC TRANSPORT & PARKING,ADVICE,CORPORATE TRAVEL MANAGEMENTLIMITED,PINV2308,81.4
DBT,ACAS,30/11/2023,PUBLIC TRANSPORT & PARKING,DISPUTE,CORPORATE TRAVEL MANAGEMENTLIMITED,PINV2308,72.2
DBT,ACAS,30/11/2023,PUBLIC TRANSPORT & PARKING,DISPUTE,CORPORATE TRAVEL MANAGEMENTLIMITED,PINV2308,72.2
DBT,ACAS,30/11/2023,PUBLIC TRANSPORT & PARKING,DISPUTE,CORPORATE TRAVEL MANAGEMENTLIMITED,PINV2308,72.2
DBT,ACAS,30/11/2023,PUBLIC TRANSPORT & PARKING,ADVICE,CORPORATE TRAVEL MANAGEMENTLIMITED,PINV2308,108.4
DBT,ACAS,30/11/2023,PUBLIC TRANSPORT & PARKING,ADVICE,CORPORATE TRAVEL MANAGEMENTLIMITED,PINV2308,108.4
DBT,ACAS,30/11/2023,PUBLIC TRANSPORT & PARKING,ADVICE,CORPORATE TRAVEL MANAGEMENTLIMITED,PINV2308,298.4
DBT,ACAS,30/11/2023,HOTEL EXPENSES,ADVICE,CORPORATE TRAVEL MANAGEMENTLIMITED,PINV2308,225
DBT,ACAS,30/11/2023,HOTEL EXPENSES,DDAT,CORPORATE TRAVEL MANAGEMENTLIMITED,PINV2308,160
DBT,ACAS,30/11/2023,HOTEL EXPENSES,ODHR,CORPORATE TRAVEL MANAGEMENTLIMITED,PINV2308,79.29
DBT,ACAS,30/11/2023,HOTEL EXPENSES,F&G,CORPORATE TRAVEL MANAGEMENTLIMITED,PINV2308,240
DBT,ACAS,30/11/2023,HOTEL EXPENSES,DISPUTE,CORPORATE TRAVEL MANAGEMENTLIMITED,PINV2308,100.42
DBT,ACAS,30/11/2023,PUBLIC TRANSPORT & PARKING,STRATEGY,CORPORATE TRAVEL MANAGEMENTLIMITED,PINV2308,162.05
DBT,ACAS,30/11/2023,PUBLIC TRANSPORT & PARKING,ADVICE,CORPORATE TRAVEL MANAGEMENTLIMITED,PINV2308,292.4
DBT,ACAS,30/11/2023,PUBLIC TRANSPORT & PARKING,DISPUTE,CORPORATE TRAVEL MANAGEMENTLIMITED,PINV2308,274.6
DBT,ACAS,30/11/2023,PUBLIC TRANSPORT & PARKING,ADVICE,CORPORATE TRAVEL MANAGEMENTLIMITED,PINV2308,299.4
DBT,ACAS,30/11/2023,PUBLIC TRANSPORT & PARKING,STRATEGY,CORPORATE TRAVEL MANAGEMENTLIMITED,PINV2308,63.8
DBT,ACAS,30/11/2023,PUBLIC TRANSPORT & PARKING,DISPUTE,CORPORATE TRAVEL MANAGEMENTLIMITED,PINV2308,244.7
DBT,ACAS,30/11/2023,PUBLIC TRANSPORT & PARKING,STRATEGY,CORPORATE TRAVEL MANAGEMENTLIMITED,PINV2308,59.6
DBT,ACAS,30/11/2023,PUBLIC TRANSPORT & PARKING,DISPUTE,CORPORATE TRAVEL MANAGEMENTLIMITED,PINV2308,-61
DBT,ACAS,30/11/2023,PUBLIC TRANSPORT & PARKING,ODHR,CORPORATE TRAVEL MANAGEMENTLIMITED,PINV2308,194.8
DBT,ACAS,30/11/2023,PUBLIC TRANSPORT & PARKING,DISPUTE,CORPORATE TRAVEL MANAGEMENTLIMITED,PINV2308,161
DBT,ACAS,30/11/2023,PUBLIC TRANSPORT & PARKING,DISPUTE,CORPORATE TRAVEL MANAGEMENTLIMITED,PINV2308,71.1
DBT,ACAS,30/11/2023,PUBLIC TRANSPORT & PARKING,ODHR,CORPORATE TRAVEL MANAGEMENTLIMITED,PINV2308,125
DBT,ACAS,30/11/2023,PUBLIC TRANSPORT & PARKING,ADVICE,CORPORATE TRAVEL MANAGEMENTLIMITED,PINV2308,342.6
DBT,ACAS,30/11/2023,PUBLIC TRANSPORT & PARKING,DISPUTE,CORPORATE TRAVEL MANAGEMENTLIMITED,PINV2308,94
DBT,ACAS,30/11/2023,PUBLIC TRANSPORT & PARKING,DISPUTE,CORPORATE TRAVEL MANAGEMENTLIMITED,PINV2308,106.5
DBT,ACAS,30/11/2023,HOTEL EXPENSES,F&G,CORPORATE TRAVEL MANAGEMENTLIMITED,PINV2308,318
DBT,ACAS,30/11/2023,HOTEL EXPENSES,ADVICE,CORPORATE TRAVEL MANAGEMENTLIMITED,PINV2308,84.07
DBT,ACAS,30/11/2023,HOTEL EXPENSES,ADVICE,CORPORATE TRAVEL MANAGEMENTLIMITED,PINV2308,165
DBT,ACAS,30/11/2023,HOTEL EXPENSES,ADVICE,CORPORATE TRAVEL MANAGEMENTLIMITED,PINV2308,436.98
DBT,ACAS,30/11/2023,HOTEL EXPENSES,ADVICE,CORPORATE TRAVEL MANAGEMENTLIMITED,PINV2308,445.48
DBT,ACAS,30/11/2023,PUBLIC TRANSPORT & PARKING,ADVICE,CORPORATE TRAVEL MANAGEMENTLIMITED,PINV2308,12.5
DBT,ACAS,30/11/2023,PUBLIC TRANSPORT & PARKING,F&G,CORPORATE TRAVEL MANAGEMENTLIMITED,PINV2308,64.2
DBT,ACAS,30/11/2023,PUBLIC TRANSPORT & PARKING,DDAT,CORPORATE TRAVEL MANAGEMENTLIMITED,PINV2308,53.9
DBT,ACAS,30/11/2023,PUBLIC TRANSPORT & PARKING,DISPUTE,CORPORATE TRAVEL MANAGEMENTLIMITED,PINV2308,99.5
DBT,ACAS,30/11/2023,PUBLIC TRANSPORT & PARKING,ODHR,CORPORATE TRAVEL MANAGEMENTLIMITED,PINV2308,95.9
DBT,ACAS,30/11/2023,HOTEL EXPENSES,ADVICE,CORPORATE TRAVEL MANAGEMENTLIMITED,PINV2308,225.5
DBT,ACAS,30/11/2023,PUBLIC TRANSPORT & PARKING,DDAT,CORPORATE TRAVEL MANAGEMENTLIMITED,PINV2308,128
DBT,ACAS,30/11/2023,PUBLIC TRANSPORT & PARKING,ADVICE,CORPORATE TRAVEL MANAGEMENTLIMITED,PINV2308,196.6
DBT,ACAS,30/11/2023,PUBLIC TRANSPORT & PARKING,ADVICE,CORPORATE TRAVEL MANAGEMENTLIMITED,PINV2308,294.8
DBT,ACAS,30/11/2023,PUBLIC TRANSPORT & PARKING,ADVICE,CORPORATE TRAVEL MANAGEMENTLIMITED,PINV2308,294.8
DBT,ACAS,30/11/2023,PUBLIC TRANSPORT & PARKING,DISPUTE,CORPORATE TRAVEL MANAGEMENTLIMITED,PINV2308,99.5
DBT,ACAS,30/11/2023,PUBLIC TRANSPORT & PARKING,ADVICE,CORPORATE TRAVEL MANAGEMENTLIMITED,PINV2308,99
DBT,ACAS,30/11/2023,HOTEL EXPENSES,ADVICE,CORPORATE TRAVEL MANAGEMENTLIMITED,PINV2308,436.98
DBT,ACAS,30/11/2023,HOTEL EXPENSES,DISPUTE,CORPORATE TRAVEL MANAGEMENTLIMITED,PINV2308,61
DBT,ACAS,30/11/2023,PUBLIC TRANSPORT & PARKING,STRATEGY,CORPORATE TRAVEL MANAGEMENTLIMITED,PINV2308,236.7
DBT,ACAS,30/11/2023,HOTEL EXPENSES,F&G,CORPORATE TRAVEL MANAGEMENTLIMITED,PINV2308,117.98
DBT,ACAS,30/11/2023,PUBLIC TRANSPORT & PARKING,DISPUTE,CORPORATE TRAVEL MANAGEMENTLIMITED,PINV2308,170.3
DBT,ACAS,30/11/2023,PUBLIC TRANSPORT & PARKING,DISPUTE,CORPORATE TRAVEL MANAGEMENTLIMITED,PINV2308,47.3
DBT,ACAS,30/11/2023,PUBLIC TRANSPORT & PARKING,F&G,CORPORATE TRAVEL MANAGEMENTLIMITED,PINV2308,137
DBT,ACAS,30/11/2023,HOTEL EXPENSES,STRATEGY,CORPORATE TRAVEL MANAGEMENTLIMITED,PINV2308,275.72
DBT,ACAS,30/11/2023,HOTEL EXPENSES,ODHR,CORPORATE TRAVEL MANAGEMENTLIMITED,PINV2308,73.2
DBT,ACAS,30/11/2023,HOTEL EXPENSES,ADVICE,CORPORATE TRAVEL MANAGEMENTLIMITED,PINV2308,86.32
DBT,ACAS,30/11/2023,HOTEL EXPENSES,ODHR,CORPORATE TRAVEL MANAGEMENTLIMITED,PINV2308,225
DBT,ACAS,30/11/2023,PUBLIC TRANSPORT & PARKING,ADVICE,CORPORATE TRAVEL MANAGEMENTLIMITED,PINV2308,136.2
DBT,ACAS,30/11/2023,PUBLIC TRANSPORT & PARKING,ADVICE,CORPORATE TRAVEL MANAGEMENTLIMITED,PINV2308,41
DBT,ACAS,30/11/2023,PUBLIC TRANSPORT & PARKING,ADVICE,CORPORATE TRAVEL MANAGEMENTLIMITED,PINV2308,41
DBT,ACAS,30/11/2023,PUBLIC TRANSPORT & PARKING,DDAT,CORPORATE TRAVEL MANAGEMENTLIMITED,PINV2308,150.3
DBT,ACAS,30/11/2023,PUBLIC TRANSPORT & PARKING,ODHR,CORPORATE TRAVEL MANAGEMENTLIMITED,PINV2308,95.9
DBT,ACAS,30/11/2023,PUBLIC TRANSPORT & PARKING,ADVICE,CORPORATE TRAVEL MANAGEMENTLIMITED,PINV2308,84.2
DBT,ACAS,30/11/2023,HOTEL EXPENSES,ADVICE,CORPORATE TRAVEL MANAGEMENTLIMITED,PINV2308,138.15
DBT,ACAS,30/11/2023,HOTEL EXPENSES,STRATEGY,CORPORATE TRAVEL MANAGEMENTLIMITED,PINV2308,165
DBT,ACAS,30/11/2023,HOTEL EXPENSES,DDAT,CORPORATE TRAVEL MANAGEMENTLIMITED,PINV2308,352
DBT,ACAS,30/11/2023,HOTEL EXPENSES,ADVICE,CORPORATE TRAVEL MANAGEMENTLIMITED,PINV2308,85
DBT,ACAS,30/11/2023,HOTEL EXPENSES,DISPUTE,CORPORATE TRAVEL MANAGEMENTLIMITED,PINV2308,85
DBT,ACAS,30/11/2023,HOTEL EXPENSES,DISPUTE,CORPORATE TRAVEL MANAGEMENTLIMITED,PINV2308,92.7
DBT,ACAS,30/11/2023,HOTEL EXPENSES,ADVICE,CORPORATE TRAVEL MANAGEMENTLIMITED,PINV2308,102
DBT,ACAS,30/11/2023,PUBLIC TRANSPORT & PARKING,ODHR,CORPORATE TRAVEL MANAGEMENTLIMITED,PINV2308,140.9
DBT,ACAS,30/11/2023,PUBLIC TRANSPORT & PARKING,DISPUTE,CORPORATE TRAVEL MANAGEMENTLIMITED,PINV2308,125.7
DBT,ACAS,30/11/2023,PUBLIC TRANSPORT & PARKING,ODHR,CORPORATE TRAVEL MANAGEMENTLIMITED,PINV2308,97.1
DBT,ACAS,30/11/2023,PUBLIC TRANSPORT & PARKING,DISPUTE,CORPORATE TRAVEL MANAGEMENTLIMITED,PINV2308,172.8
DBT,ACAS,30/11/2023,PUBLIC TRANSPORT & PARKING,DDAT,CORPORATE TRAVEL MANAGEMENTLIMITED,PINV2308,202.5
DBT,ACAS,30/11/2023,PUBLIC TRANSPORT & PARKING,F&G,CORPORATE TRAVEL MANAGEMENTLIMITED,PINV2308,97.5
DBT,ACAS,30/11/2023,PUBLIC TRANSPORT & PARKING,ADVICE,CORPORATE TRAVEL MANAGEMENTLIMITED,PINV2308,290.2
DBT,ACAS,30/11/2023,PUBLIC TRANSPORT & PARKING,DISPUTE,CORPORATE TRAVEL MANAGEMENTLIMITED,PINV2308,85.5
DBT,ACAS,30/11/2023,PUBLIC TRANSPORT & PARKING,DISPUTE,CORPORATE TRAVEL MANAGEMENTLIMITED,PINV2308,75.5
DBT,ACAS,30/11/2023,HOTEL EXPENSES,ADVICE,CORPORATE TRAVEL MANAGEMENTLIMITED,PINV2308,77.32
DBT,ACAS,30/11/2023,PUBLIC TRANSPORT & PARKING,DDAT,CORPORATE TRAVEL MANAGEMENTLIMITED,PINV2308,160
DBT,ACAS,30/11/2023,PUBLIC TRANSPORT & PARKING,ADVICE,CORPORATE TRAVEL MANAGEMENTLIMITED,PINV2308,14.9
DBT,ACAS,30/11/2023,PUBLIC TRANSPORT & PARKING,STRATEGY,CORPORATE TRAVEL MANAGEMENTLIMITED,PINV2308,188.9
DBT,ACAS,30/11/2023,PUBLIC TRANSPORT & PARKING,DISPUTE,CORPORATE TRAVEL MANAGEMENTLIMITED,PINV2308,151.4
DBT,ACAS,30/11/2023,PUBLIC TRANSPORT & PARKING,F&G,CORPORATE TRAVEL MANAGEMENTLIMITED,PINV2308,190.4
DBT,ACAS,30/11/2023,PUBLIC TRANSPORT & PARKING,ODHR,CORPORATE TRAVEL MANAGEMENTLIMITED,PINV2308,96
DBT,ACAS,30/11/2023,PUBLIC TRANSPORT & PARKING,STRATEGY,CORPORATE TRAVEL MANAGEMENTLIMITED,PINV2308,146
DBT,ACAS,30/11/2023,PUBLIC TRANSPORT & PARKING,DDAT,CORPORATE TRAVEL MANAGEMENTLIMITED,PINV2308,221.7
DBT,ACAS,30/11/2023,HOTEL EXPENSES,STRATEGY,CORPORATE TRAVEL MANAGEMENTLIMITED,PINV2308,104.2
DBT,ACAS,30/11/2023,HOTEL EXPENSES,ODHR,CORPORATE TRAVEL MANAGEMENTLIMITED,PINV2308,67.59
DBT,ACAS,30/11/2023,PUBLIC TRANSPORT & PARKING,F&G,CORPORATE TRAVEL MANAGEMENTLIMITED,PINV2308,274
DBT,ACAS,30/11/2023,PUBLIC TRANSPORT & PARKING,F&G,CORPORATE TRAVEL MANAGEMENTLIMITED,PINV2308,274
DBT,ACAS,30/11/2023,PUBLIC TRANSPORT & PARKING,F&G,CORPORATE TRAVEL MANAGEMENTLIMITED,PINV2308,88.7
DBT,ACAS,30/11/2023,PUBLIC TRANSPORT & PARKING,F&G,CORPORATE TRAVEL MANAGEMENTLIMITED,PINV2308,25.6
DBT,ACAS,30/11/2023,PUBLIC TRANSPORT & PARKING,ODHR,CORPORATE TRAVEL MANAGEMENTLIMITED,PINV2308,241
DBT,ACAS,30/11/2023,PUBLIC TRANSPORT & PARKING,STRATEGY,CORPORATE TRAVEL MANAGEMENTLIMITED,PINV2308,-83.9
DBT,ACAS,30/11/2023,PUBLIC TRANSPORT & PARKING,STRATEGY,CORPORATE TRAVEL MANAGEMENTLIMITED,PINV2308,-78.9
DBT,ACAS,30/11/2023,PUBLIC TRANSPORT & PARKING,F&G,CORPORATE TRAVEL MANAGEMENTLIMITED,PINV2308,199.5
DBT,ACAS,30/11/2023,PUBLIC TRANSPORT & PARKING,DISPUTE,CORPORATE TRAVEL MANAGEMENTLIMITED,PINV2308,125.1
DBT,ACAS,30/11/2023,PUBLIC TRANSPORT & PARKING,DDAT,CORPORATE TRAVEL MANAGEMENTLIMITED,PINV2308,258.8
DBT,ACAS,30/11/2023,PUBLIC TRANSPORT & PARKING,DDAT,CORPORATE TRAVEL MANAGEMENTLIMITED,PINV2308,132.4
DBT,ACAS,30/11/2023,HOTEL EXPENSES,ODHR,CORPORATE TRAVEL MANAGEMENTLIMITED,PINV2308,108.09
DBT,ACAS,30/11/2023,PUBLIC TRANSPORT & PARKING,DDAT,CORPORATE TRAVEL MANAGEMENTLIMITED,PINV2308,275.2
DBT,ACAS,30/11/2023,HOTEL EXPENSES,ADVICE,CORPORATE TRAVEL MANAGEMENTLIMITED,PINV2308,57.82
DBT,ACAS,30/11/2023,PUBLIC TRANSPORT & PARKING,F&G,CORPORATE TRAVEL MANAGEMENTLIMITED,PINV2308,131
DBT,ACAS,30/11/2023,PUBLIC TRANSPORT & PARKING,ODHR,CORPORATE TRAVEL MANAGEMENTLIMITED,PINV2308,137.8
DBT,ACAS,30/11/2023,HOTEL EXPENSES,ADVICE,CORPORATE TRAVEL MANAGEMENTLIMITED,PINV2308,85.83
DBT,ACAS,30/11/2023,HOTEL EXPENSES,ADVICE,CORPORATE TRAVEL MANAGEMENTLIMITED,PINV2308,85.83
DBT,ACAS,30/11/2023,HOTEL EXPENSES,DISPUTE,CORPORATE TRAVEL MANAGEMENTLIMITED,PINV2308,70.29
DBT,ACAS,30/11/2023,PUBLIC TRANSPORT & PARKING,STRATEGY,CORPORATE TRAVEL MANAGEMENTLIMITED,PINV2308,-158.3
DBT,ACAS,30/11/2023,PUBLIC TRANSPORT & PARKING,STRATEGY,CORPORATE TRAVEL MANAGEMENTLIMITED,PINV2308,-153.3
DBT,ACAS,30/11/2023,PUBLIC TRANSPORT & PARKING,F&G,CORPORATE TRAVEL MANAGEMENTLIMITED,PINV2308,124.1
DBT,ACAS,30/11/2023,PUBLIC TRANSPORT & PARKING,ADVICE,CORPORATE TRAVEL MANAGEMENTLIMITED,PINV2308,14.9
DBT,ACAS,30/11/2023,HOTEL EXPENSES,ODHR,CORPORATE TRAVEL MANAGEMENTLIMITED,PINV2308,184.5
DBT,ACAS,30/11/2023,HOTEL EXPENSES,DDAT,CORPORATE TRAVEL MANAGEMENTLIMITED,PINV2308,172.9
DBT,ACAS,30/11/2023,HOTEL EXPENSES,DISPUTE,CORPORATE TRAVEL MANAGEMENTLIMITED,PINV2308,95.49
DBT,ACAS,30/11/2023,PUBLIC TRANSPORT & PARKING,ADVICE,CORPORATE TRAVEL MANAGEMENTLIMITED,PINV2308,14.9
DBT,ACAS,30/11/2023,PUBLIC TRANSPORT & PARKING,DDAT,CORPORATE TRAVEL MANAGEMENTLIMITED,PINV2308,194.8
DBT,ACAS,30/11/2023,PUBLIC TRANSPORT & PARKING,STRATEGY,CORPORATE TRAVEL MANAGEMENTLIMITED,PINV2308,40.3
DBT,ACAS,30/11/2023,PUBLIC TRANSPORT & PARKING,STRATEGY,CORPORATE TRAVEL MANAGEMENTLIMITED,PINV2308,213
DBT,ACAS,30/11/2023,PUBLIC TRANSPORT & PARKING,F&G,CORPORATE TRAVEL MANAGEMENTLIMITED,PINV2308,99.9
DBT,ACAS,30/11/2023,HOTEL EXPENSES,STRATEGY,CORPORATE TRAVEL MANAGEMENTLIMITED,PINV2308,227.92
DBT,ACAS,30/11/2023,PUBLIC TRANSPORT & PARKING,F&G,CORPORATE TRAVEL MANAGEMENTLIMITED,PINV2308,214.5
DBT,ACAS,30/11/2023,HOTEL EXPENSES,ADVICE,CORPORATE TRAVEL MANAGEMENTLIMITED,PINV2308,146.67
DBT,ACAS,30/11/2023,HOTEL EXPENSES,DISPUTE,CORPORATE TRAVEL MANAGEMENTLIMITED,PINV2308,149
DBT,ACAS,30/11/2023,HOTEL EXPENSES,F&G,CORPORATE TRAVEL MANAGEMENTLIMITED,PINV2308,113.98
DBT,ACAS,30/11/2023,HOTEL EXPENSES,DISPUTE,CORPORATE TRAVEL MANAGEMENTLIMITED,PINV2308,143
DBT,ACAS,30/11/2023,HOTEL EXPENSES,DISPUTE,CORPORATE TRAVEL MANAGEMENTLIMITED,PINV2308,83.79
DBT,ACAS,30/11/2023,HOTEL EXPENSES,DISPUTE,CORPORATE TRAVEL MANAGEMENTLIMITED,PINV2308,92.79
DBT,ACAS,30/11/2023,PUBLIC TRANSPORT & PARKING,F&G,CORPORATE TRAVEL MANAGEMENTLIMITED,PINV2308,186.2
DBT,ACAS,30/11/2023,PUBLIC TRANSPORT & PARKING,F&G,CORPORATE TRAVEL MANAGEMENTLIMITED,PINV2308,186.2
DBT,ACAS,30/11/2023,PUBLIC TRANSPORT & PARKING,STRATEGY,CORPORATE TRAVEL MANAGEMENTLIMITED,PINV2308,309.2
DBT,ACAS,30/11/2023,PUBLIC TRANSPORT & PARKING,DDAT,CORPORATE TRAVEL MANAGEMENTLIMITED,PINV2308,258.8
DBT,ACAS,30/11/2023,PUBLIC TRANSPORT & PARKING,DISPUTE,CORPORATE TRAVEL MANAGEMENTLIMITED,PINV2308,286.4
DBT,ACAS,30/11/2023,PUBLIC TRANSPORT & PARKING,DISPUTE,CORPORATE TRAVEL MANAGEMENTLIMITED,PINV2308,109.9
DBT,ACAS,30/11/2023,PUBLIC TRANSPORT & PARKING,ODHR,CORPORATE TRAVEL MANAGEMENTLIMITED,PINV2308,280.4
DBT,ACAS,30/11/2023,PUBLIC TRANSPORT & PARKING,DISPUTE,CORPORATE TRAVEL MANAGEMENTLIMITED,PINV2308,343.4
DBT,ACAS,30/11/2023,PUBLIC TRANSPORT & PARKING,ODHR,CORPORATE TRAVEL MANAGEMENTLIMITED,PINV2308,176
DBT,ACAS,30/11/2023,PUBLIC TRANSPORT & PARKING,ODHR,CORPORATE TRAVEL MANAGEMENTLIMITED,PINV2308,246.9
DBT,ACAS,30/11/2023,PUBLIC TRANSPORT & PARKING,ODHR,CORPORATE TRAVEL MANAGEMENTLIMITED,PINV2308,216
DBT,ACAS,30/11/2023,PUBLIC TRANSPORT & PARKING,STRATEGY,CORPORATE TRAVEL MANAGEMENTLIMITED,PINV2308,144
DBT,ACAS,30/11/2023,PUBLIC TRANSPORT & PARKING,DISPUTE,CORPORATE TRAVEL MANAGEMENTLIMITED,PINV2308,40
DBT,ACAS,30/11/2023,HOTEL EXPENSES,DISPUTE,CORPORATE TRAVEL MANAGEMENTLIMITED,PINV2308,70.83
DBT,ACAS,30/11/2023,HOTEL EXPENSES,ADVICE,CORPORATE TRAVEL MANAGEMENTLIMITED,PINV2308,75
DBT,ACAS,30/11/2023,PUBLIC TRANSPORT & PARKING,DDAT,CORPORATE TRAVEL MANAGEMENTLIMITED,PINV2308,258.8
DBT,ACAS,30/11/2023,PUBLIC TRANSPORT & PARKING,F&G,CORPORATE TRAVEL MANAGEMENTLIMITED,PINV2308,18.8
DBT,ACAS,30/11/2023,PUBLIC TRANSPORT & PARKING,ADVICE,CORPORATE TRAVEL MANAGEMENTLIMITED,PINV2308,37.1
DBT,ACAS,30/11/2023,PUBLIC TRANSPORT & PARKING,ADVICE,CORPORATE TRAVEL MANAGEMENTLIMITED,PINV2308,11.1
DBT,ACAS,30/11/2023,PUBLIC TRANSPORT & PARKING,ADVICE,CORPORATE TRAVEL MANAGEMENTLIMITED,PINV2308,10.3
DBT,ACAS,30/11/2023,PUBLIC TRANSPORT & PARKING,DDAT,CORPORATE TRAVEL MANAGEMENTLIMITED,PINV2308,83
DBT,ACAS,30/11/2023,PUBLIC TRANSPORT & PARKING,STRATEGY,CORPORATE TRAVEL MANAGEMENTLIMITED,PINV2308,231.1
DBT,ACAS,30/11/2023,PUBLIC TRANSPORT & PARKING,F&G,CORPORATE TRAVEL MANAGEMENTLIMITED,PINV2308,286.4
DBT,ACAS,30/11/2023,PUBLIC TRANSPORT & PARKING,DISPUTE,CORPORATE TRAVEL MANAGEMENTLIMITED,PINV2308,66.5
DBT,ACAS,30/11/2023,PUBLIC TRANSPORT & PARKING,STRATEGY,CORPORATE TRAVEL MANAGEMENTLIMITED,PINV2308,231.1
DBT,ACAS,30/11/2023,HOTEL EXPENSES,F&G,CORPORATE TRAVEL MANAGEMENTLIMITED,PINV2308,206.1
DBT,ACAS,30/11/2023,HOTEL EXPENSES,ADVICE,CORPORATE TRAVEL MANAGEMENTLIMITED,PINV2308,102.69
DBT,ACAS,30/11/2023,HOTEL EXPENSES,DISPUTE,CORPORATE TRAVEL MANAGEMENTLIMITED,PINV2308,165
DBT,ACAS,30/11/2023,PUBLIC TRANSPORT & PARKING,F&G,CORPORATE TRAVEL MANAGEMENTLIMITED,PINV2308,124.5
DBT,ACAS,14/12/2023,CHILDCARE VOUCHERS,F&G,EDENRED CHILDCARE VOUCHERS LTD,PINV2309,"1,549.00"
DBT,ACAS,14/12/2023,REFUNDS,ADVICE,INDEPENDENCE MATTERS,PINV2310,270
DBT,ACAS,06/12/2023,REFUNDS,ADVICE,JUNIPER TRAINING LTD,PINV2313,325
DBT,ACAS,18/12/2023,EXTERNAL LEARNING,ODHR,UNIFY HOLDING UK 1 LIMITED,PINV2314,"1,200.00"
DBT,ACAS,25/12/2023,HIRE CAR COSTS,ADVICE,ENTERPRISE RENT-A-CAR,PINV2318,102.42
DBT,ACAS,25/12/2023,HIRE CAR COSTS,ADVICE,ENTERPRISE RENT-A-CAR,PINV2318,102.42
DBT,ACAS,25/12/2023,HIRE CAR COSTS,ADVICE,ENTERPRISE RENT-A-CAR,PINV2318,147.65
DBT,ACAS,25/12/2023,HIRE CAR COSTS,DISPUTE,ENTERPRISE RENT-A-CAR,PINV2318,72.42
DBT,ACAS,25/12/2023,HIRE CAR COSTS,DISPUTE,ENTERPRISE RENT-A-CAR,PINV2318,108.53
DBT,ACAS,25/12/2023,HIRE CAR COSTS,ADVICE,ENTERPRISE RENT-A-CAR,PINV2318,102.42
DBT,ACAS,25/12/2023,HIRE CAR COSTS,ADVICE,ENTERPRISE RENT-A-CAR,PINV2318,153.67
DBT,ACAS,25/12/2023,HIRE CAR COSTS,ADVICE,ENTERPRISE RENT-A-CAR,PINV2318,102.42
DBT,ACAS,25/12/2023,HIRE CAR COSTS,ADVICE,ENTERPRISE RENT-A-CAR,PINV2318,102.42
DBT,ACAS,25/12/2023,HIRE CAR COSTS,DISPUTE,ENTERPRISE RENT-A-CAR,PINV2318,102.42
DBT,ACAS,25/12/2023,HIRE CAR COSTS,ADVICE,ENTERPRISE RENT-A-CAR,PINV2318,147.65
DBT,ACAS,25/12/2023,HIRE CAR COSTS,ADVICE,ENTERPRISE RENT-A-CAR,PINV2318,102.42
DBT,ACAS,25/12/2023,VENUE HIRE (REC VAT),ADVICE,Agiito,PINV2321,385
DBT,ACAS,25/12/2023,VENUE HIRE (REC VAT),ADVICE,Agiito,PINV2321,260
DBT,ACAS,25/12/2023,CATERING,ADVICE,Agiito,PINV2321,120
DBT,ACAS,25/12/2023,CATERING,ADVICE,Agiito,PINV2321,70
DBT,ACAS,25/12/2023,CONFERENCE COSTS [NON - STAFF],CAC,Agiito,PINV2321,575
DBT,ACAS,25/12/2023,CATERING,CAC,Agiito,PINV2321,20
DBT,ACAS,25/12/2023,CATERING,CAC,Agiito,PINV2321,52.5
DBT,ACAS,25/12/2023,VENUE HIRE (REC VAT),ADVICE,Agiito,PINV2321,"2,081.00"
DBT,ACAS,25/12/2023,VENUE HIRE (REC VAT),ADVICE,Agiito,PINV2321,648
DBT,ACAS,20/12/2023,LOSSES,ADVICE,CRYSTAL CARE SOLUTIONS LTD,PINV2323,345
DBT,ACAS,30/11/2023,PERSONAL EXPENSE,DISPUTE,NAME / DESCRIPTION WITHHELD,EXPS2792,48.14
DBT,ACAS,30/11/2023,PERSONAL EXPENSE,DISPUTE,NAME / DESCRIPTION WITHHELD,EXPS2792,34.04
DBT,ACAS,30/11/2023,PERSONAL EXPENSE,DISPUTE,NAME / DESCRIPTION WITHHELD,EXPS2792,45.99
DBT,ACAS,30/11/2023,PERSONAL EXPENSE,DISPUTE,NAME / DESCRIPTION WITHHELD,EXPS2792,20
DBT,ACAS,30/11/2023,PERSONAL EXPENSE,DISPUTE,NAME / DESCRIPTION WITHHELD,EXPS2792,2.8
DBT,ACAS,30/11/2023,PERSONAL EXPENSE,DISPUTE,NAME / DESCRIPTION WITHHELD,EXPS2792,197.92
DBT,ACAS,30/11/2023,PERSONAL EXPENSE,DISPUTE,NAME / DESCRIPTION WITHHELD,EXPS2792,15
DBT,ACAS,30/11/2023,PERSONAL EXPENSE,DISPUTE,NAME / DESCRIPTION WITHHELD,EXPS2792,10
DBT,ACAS,30/11/2023,PERSONAL EXPENSE,DISPUTE,NAME / DESCRIPTION WITHHELD,EXPS2792,5
DBT,ACAS,30/11/2023,PERSONAL EXPENSE,DISPUTE,NAME / DESCRIPTION WITHHELD,EXPS2792,10
DBT,ACAS,30/11/2023,PERSONAL EXPENSE,DISPUTE,NAME / DESCRIPTION WITHHELD,EXPS2792,10
DBT,ACAS,30/11/2023,PERSONAL EXPENSE,DISPUTE,NAME / DESCRIPTION WITHHELD,EXPS2792,10
DBT,ACAS,30/11/2023,PERSONAL EXPENSE,DISPUTE,NAME / DESCRIPTION WITHHELD,EXPS2792,105
DBT,ACAS,30/11/2023,PERSONAL EXPENSE,DISPUTE,NAME / DESCRIPTION WITHHELD,EXPS2792,70
DBT,ACAS,30/11/2023,PERSONAL EXPENSE,DISPUTE,NAME / DESCRIPTION WITHHELD,EXPS2792,35
DBT,ACAS,04/12/2023,PERSONAL EXPENSE,ADVICE,NAME / DESCRIPTION WITHHELD,EXPS2796,192.6
DBT,ACAS,04/12/2023,PERSONAL EXPENSE,ADVICE,NAME / DESCRIPTION WITHHELD,EXPS2796,4
DBT,ACAS,04/12/2023,PERSONAL EXPENSE,ADVICE,NAME / DESCRIPTION WITHHELD,EXPS2796,10
DBT,ACAS,04/12/2023,PERSONAL EXPENSE,ADVICE,NAME / DESCRIPTION WITHHELD,EXPS2796,5
DBT,ACAS,04/12/2023,PERSONAL EXPENSE,ADVICE,NAME / DESCRIPTION WITHHELD,EXPS2796,35
DBT,ACAS,04/12/2023,PERSONAL EXPENSE,ADVICE,NAME / DESCRIPTION WITHHELD,EXPS2796,10
DBT,ACAS,04/12/2023,PERSONAL EXPENSE,ADVICE,NAME / DESCRIPTION WITHHELD,EXPS2796,30
DBT,ACAS,04/12/2023,PERSONAL EXPENSE,ADVICE,NAME / DESCRIPTION WITHHELD,EXPS2796,10
DBT,ACAS,01/12/2023,PERSONAL EXPENSE,ADVICE,NAME / DESCRIPTION WITHHELD,EXPS2803,216
DBT,ACAS,01/12/2023,PERSONAL EXPENSE,ADVICE,NAME / DESCRIPTION WITHHELD,EXPS2803,15.4
DBT,ACAS,01/12/2023,PERSONAL EXPENSE,ADVICE,NAME / DESCRIPTION WITHHELD,EXPS2803,15
DBT,ACAS,01/12/2023,PERSONAL EXPENSE,ADVICE,NAME / DESCRIPTION WITHHELD,EXPS2803,10
DBT,ACAS,01/12/2023,PERSONAL EXPENSE,ADVICE,NAME / DESCRIPTION WITHHELD,EXPS2803,20
DBT,ACAS,01/12/2023,PERSONAL EXPENSE,ADVICE,NAME / DESCRIPTION WITHHELD,EXPS2803,10
DBT,ACAS,01/12/2023,PERSONAL EXPENSE,ADVICE,NAME / DESCRIPTION WITHHELD,EXPS2803,10
DBT,ACAS,01/12/2023,PERSONAL EXPENSE,ADVICE,NAME / DESCRIPTION WITHHELD,EXPS2803,10
DBT,ACAS,01/12/2023,PERSONAL EXPENSE,DISPUTE,NAME / DESCRIPTION WITHHELD,EXPS2804,21.95
DBT,ACAS,01/12/2023,PERSONAL EXPENSE,DISPUTE,NAME / DESCRIPTION WITHHELD,EXPS2804,138.6
DBT,ACAS,01/12/2023,PERSONAL EXPENSE,DISPUTE,NAME / DESCRIPTION WITHHELD,EXPS2804,10
DBT,ACAS,01/12/2023,PERSONAL EXPENSE,DISPUTE,NAME / DESCRIPTION WITHHELD,EXPS2804,5
DBT,ACAS,01/12/2023,PERSONAL EXPENSE,DISPUTE,NAME / DESCRIPTION WITHHELD,EXPS2804,10
DBT,ACAS,01/12/2023,PERSONAL EXPENSE,DISPUTE,NAME / DESCRIPTION WITHHELD,EXPS2804,15
DBT,ACAS,01/12/2023,PERSONAL EXPENSE,DISPUTE,NAME / DESCRIPTION WITHHELD,EXPS2804,35
DBT,ACAS,01/12/2023,PERSONAL EXPENSE,DISPUTE,NAME / DESCRIPTION WITHHELD,EXPS2804,20
DBT,ACAS,03/12/2023,PERSONAL EXPENSE,F&G,NAME / DESCRIPTION WITHHELD,EXPS2813,35.1
DBT,ACAS,03/12/2023,PERSONAL EXPENSE,F&G,NAME / DESCRIPTION WITHHELD,EXPS2813,27.95
DBT,ACAS,03/12/2023,PERSONAL EXPENSE,F&G,NAME / DESCRIPTION WITHHELD,EXPS2813,175
DBT,ACAS,03/12/2023,PERSONAL EXPENSE,F&G,NAME / DESCRIPTION WITHHELD,EXPS2813,25
DBT,ACAS,03/12/2023,PERSONAL EXPENSE,F&G,NAME / DESCRIPTION WITHHELD,EXPS2813,10
DBT,ACAS,03/12/2023,PERSONAL EXPENSE,F&G,NAME / DESCRIPTION WITHHELD,EXPS2813,10
DBT,ACAS,03/12/2023,PERSONAL EXPENSE,F&G,NAME / DESCRIPTION WITHHELD,EXPS2813,50
DBT,ACAS,03/12/2023,PERSONAL EXPENSE,F&G,NAME / DESCRIPTION WITHHELD,EXPS2813,3.9
DBT,ACAS,04/12/2023,PERSONAL EXPENSE,DISPUTE,NAME / DESCRIPTION WITHHELD,EXPS2817,8.55
DBT,ACAS,04/12/2023,PERSONAL EXPENSE,DISPUTE,NAME / DESCRIPTION WITHHELD,EXPS2817,175
DBT,ACAS,04/12/2023,PERSONAL EXPENSE,DISPUTE,NAME / DESCRIPTION WITHHELD,EXPS2817,25
DBT,ACAS,04/12/2023,PERSONAL EXPENSE,DISPUTE,NAME / DESCRIPTION WITHHELD,EXPS2817,50
DBT,ACAS,04/12/2023,PERSONAL EXPENSE,DISPUTE,NAME / DESCRIPTION WITHHELD,EXPS2817,10
DBT,ACAS,04/12/2023,PERSONAL EXPENSE,ADVICE,NAME / DESCRIPTION WITHHELD,EXPS2819,35.1
DBT,ACAS,04/12/2023,PERSONAL EXPENSE,ADVICE,NAME / DESCRIPTION WITHHELD,EXPS2819,331.2
DBT,ACAS,04/12/2023,PERSONAL EXPENSE,ADVICE,NAME / DESCRIPTION WITHHELD,EXPS2819,16.9
DBT,ACAS,04/12/2023,PERSONAL EXPENSE,ADVICE,NAME / DESCRIPTION WITHHELD,EXPS2819,6.6
DBT,ACAS,04/12/2023,PERSONAL EXPENSE,ADVICE,NAME / DESCRIPTION WITHHELD,EXPS2819,30
DBT,ACAS,04/12/2023,PERSONAL EXPENSE,ADVICE,NAME / DESCRIPTION WITHHELD,EXPS2819,10
DBT,ACAS,04/12/2023,PERSONAL EXPENSE,ADVICE,NAME / DESCRIPTION WITHHELD,EXPS2819,70
DBT,ACAS,04/12/2023,PERSONAL EXPENSE,ADVICE,NAME / DESCRIPTION WITHHELD,EXPS2819,35
DBT,ACAS,04/12/2023,PERSONAL EXPENSE,ADVICE,NAME / DESCRIPTION WITHHELD,EXPS2819,10
DBT,ACAS,04/12/2023,PERSONAL EXPENSE,ADVICE,NAME / DESCRIPTION WITHHELD,EXPS2819,5
DBT,ACAS,04/12/2023,PERSONAL EXPENSE,ADVICE,NAME / DESCRIPTION WITHHELD,EXPS2819,10
DBT,ACAS,06/12/2023,PERSONAL EXPENSE,ADVICE,NAME / DESCRIPTION WITHHELD,EXPS2827,336.6
DBT,ACAS,06/12/2023,PERSONAL EXPENSE,ADVICE,NAME / DESCRIPTION WITHHELD,EXPS2827,5.9
DBT,ACAS,06/12/2023,PERSONAL EXPENSE,ADVICE,NAME / DESCRIPTION WITHHELD,EXPS2827,25.8
DBT,ACAS,06/12/2023,PERSONAL EXPENSE,ADVICE,NAME / DESCRIPTION WITHHELD,EXPS2827,30
DBT,ACAS,06/12/2023,PERSONAL EXPENSE,ADVICE,NAME / DESCRIPTION WITHHELD,EXPS2827,10
DBT,ACAS,06/12/2023,PERSONAL EXPENSE,ADVICE,NAME / DESCRIPTION WITHHELD,EXPS2827,30
DBT,ACAS,06/12/2023,PERSONAL EXPENSE,ADVICE,NAME / DESCRIPTION WITHHELD,EXPS2827,70
DBT,ACAS,05/12/2023,PERSONAL EXPENSE,DISPUTE,NAME / DESCRIPTION WITHHELD,EXPS2829,229.05
DBT,ACAS,05/12/2023,PERSONAL EXPENSE,DISPUTE,NAME / DESCRIPTION WITHHELD,EXPS2829,35
DBT,ACAS,05/12/2023,PERSONAL EXPENSE,DISPUTE,NAME / DESCRIPTION WITHHELD,EXPS2829,30
DBT,ACAS,05/12/2023,PERSONAL EXPENSE,DISPUTE,NAME / DESCRIPTION WITHHELD,EXPS2829,20
DBT,ACAS,05/12/2023,PERSONAL EXPENSE,DISPUTE,NAME / DESCRIPTION WITHHELD,EXPS2829,10
DBT,ACAS,06/12/2023,PERSONAL EXPENSE,ADVICE,NAME / DESCRIPTION WITHHELD,EXPS2833,35
DBT,ACAS,06/12/2023,PERSONAL EXPENSE,ADVICE,NAME / DESCRIPTION WITHHELD,EXPS2833,245
DBT,ACAS,06/12/2023,PERSONAL EXPENSE,ADVICE,NAME / DESCRIPTION WITHHELD,EXPS2833,40
DBT,ACAS,06/12/2023,PERSONAL EXPENSE,ADVICE,NAME / DESCRIPTION WITHHELD,EXPS2833,5
DBT,ACAS,06/12/2023,PERSONAL EXPENSE,ADVICE,NAME / DESCRIPTION WITHHELD,EXPS2833,35
DBT,ACAS,06/12/2023,PERSONAL EXPENSE,ADVICE,NAME / DESCRIPTION WITHHELD,EXPS2833,10
DBT,ACAS,08/12/2023,PERSONAL EXPENSE,ADVICE,NAME / DESCRIPTION WITHHELD,EXPS2847,52.9
DBT,ACAS,08/12/2023,PERSONAL EXPENSE,ADVICE,NAME / DESCRIPTION WITHHELD,EXPS2847,41.2
DBT,ACAS,08/12/2023,PERSONAL EXPENSE,ADVICE,NAME / DESCRIPTION WITHHELD,EXPS2847,20
DBT,ACAS,08/12/2023,PERSONAL EXPENSE,ADVICE,NAME / DESCRIPTION WITHHELD,EXPS2847,15
DBT,ACAS,08/12/2023,PERSONAL EXPENSE,ADVICE,NAME / DESCRIPTION WITHHELD,EXPS2847,105
DBT,ACAS,08/12/2023,PERSONAL EXPENSE,ADVICE,NAME / DESCRIPTION WITHHELD,EXPS2847,5
DBT,ACAS,08/12/2023,PERSONAL EXPENSE,ADVICE,NAME / DESCRIPTION WITHHELD,EXPS2847,10
DBT,ACAS,08/12/2023,PERSONAL EXPENSE,ADVICE,NAME / DESCRIPTION WITHHELD,EXPS2847,10
DBT,ACAS,08/12/2023,PERSONAL EXPENSE,ADVICE,NAME / DESCRIPTION WITHHELD,EXPS2847,30
DBT,ACAS,13/12/2023,PERSONAL EXPENSE,ADVICE,NAME / DESCRIPTION WITHHELD,EXPS2860,52.9
DBT,ACAS,13/12/2023,PERSONAL EXPENSE,ADVICE,NAME / DESCRIPTION WITHHELD,EXPS2860,41.2
DBT,ACAS,13/12/2023,PERSONAL EXPENSE,ADVICE,NAME / DESCRIPTION WITHHELD,EXPS2860,20
DBT,ACAS,13/12/2023,PERSONAL EXPENSE,ADVICE,NAME / DESCRIPTION WITHHELD,EXPS2860,10
DBT,ACAS,13/12/2023,PERSONAL EXPENSE,ADVICE,NAME / DESCRIPTION WITHHELD,EXPS2860,30
DBT,ACAS,13/12/2023,PERSONAL EXPENSE,ADVICE,NAME / DESCRIPTION WITHHELD,EXPS2860,15
DBT,ACAS,13/12/2023,PERSONAL EXPENSE,ADVICE,NAME / DESCRIPTION WITHHELD,EXPS2860,105
DBT,ACAS,13/12/2023,PERSONAL EXPENSE,ADVICE,NAME / DESCRIPTION WITHHELD,EXPS2860,5
DBT,ACAS,13/12/2023,PERSONAL EXPENSE,ADVICE,NAME / DESCRIPTION WITHHELD,EXPS2860,10
DBT,ACAS,13/12/2023,PERSONAL EXPENSE,ADVICE,NAME / DESCRIPTION WITHHELD,EXPS2861,254.25
DBT,ACAS,13/12/2023,PERSONAL EXPENSE,ADVICE,NAME / DESCRIPTION WITHHELD,EXPS2861,22.5
DBT,ACAS,13/12/2023,PERSONAL EXPENSE,ADVICE,NAME / DESCRIPTION WITHHELD,EXPS2861,67.52
DBT,ACAS,13/12/2023,PERSONAL EXPENSE,ADVICE,NAME / DESCRIPTION WITHHELD,EXPS2861,8.9
DBT,ACAS,13/12/2023,PERSONAL EXPENSE,ADVICE,NAME / DESCRIPTION WITHHELD,EXPS2861,8.9
DBT,ACAS,13/12/2023,PERSONAL EXPENSE,ADVICE,NAME / DESCRIPTION WITHHELD,EXPS2861,5
DBT,ACAS,13/12/2023,PERSONAL EXPENSE,ADVICE,NAME / DESCRIPTION WITHHELD,EXPS2861,35
DBT,ACAS,13/12/2023,PERSONAL EXPENSE,ADVICE,NAME / DESCRIPTION WITHHELD,EXPS2861,10
DBT,ACAS,13/12/2023,PERSONAL EXPENSE,ADVICE,NAME / DESCRIPTION WITHHELD,EXPS2861,10
DBT,ACAS,13/12/2023,PERSONAL EXPENSE,ADVICE,NAME / DESCRIPTION WITHHELD,EXPS2861,20
DBT,ACAS,13/12/2023,PERSONAL EXPENSE,ADVICE,NAME / DESCRIPTION WITHHELD,EXPS2861,50
DBT,ACAS,14/12/2023,PERSONAL EXPENSE,ADVICE,NAME / DESCRIPTION WITHHELD,EXPS2872,27
DBT,ACAS,14/12/2023,PERSONAL EXPENSE,ADVICE,NAME / DESCRIPTION WITHHELD,EXPS2872,34.65
DBT,ACAS,14/12/2023,PERSONAL EXPENSE,ADVICE,NAME / DESCRIPTION WITHHELD,EXPS2872,23.96
DBT,ACAS,14/12/2023,PERSONAL EXPENSE,ADVICE,NAME / DESCRIPTION WITHHELD,EXPS2872,170
DBT,ACAS,14/12/2023,PERSONAL EXPENSE,ADVICE,NAME / DESCRIPTION WITHHELD,EXPS2872,10
DBT,ACAS,14/12/2023,PERSONAL EXPENSE,ADVICE,NAME / DESCRIPTION WITHHELD,EXPS2872,50
DBT,ACAS,14/12/2023,PERSONAL EXPENSE,ADVICE,NAME / DESCRIPTION WITHHELD,EXPS2872,10
DBT,ACAS,14/12/2023,PERSONAL EXPENSE,ADVICE,NAME / DESCRIPTION WITHHELD,EXPS2872,5
DBT,ACAS,14/12/2023,PERSONAL EXPENSE,ADVICE,NAME / DESCRIPTION WITHHELD,EXPS2872,35
DBT,ACAS,14/12/2023,PERSONAL EXPENSE,ADVICE,NAME / DESCRIPTION WITHHELD,EXPS2872,10
DBT,ACAS,15/12/2023,PERSONAL EXPENSE,ADVICE,NAME / DESCRIPTION WITHHELD,EXPS2883,193.5
DBT,ACAS,15/12/2023,PERSONAL EXPENSE,ADVICE,NAME / DESCRIPTION WITHHELD,EXPS2883,43.65
DBT,ACAS,15/12/2023,PERSONAL EXPENSE,ADVICE,NAME / DESCRIPTION WITHHELD,EXPS2883,10.16
DBT,ACAS,15/12/2023,PERSONAL EXPENSE,ADVICE,NAME / DESCRIPTION WITHHELD,EXPS2883,13.6
DBT,ACAS,15/12/2023,PERSONAL EXPENSE,ADVICE,NAME / DESCRIPTION WITHHELD,EXPS2883,10
DBT,ACAS,15/12/2023,PERSONAL EXPENSE,ADVICE,NAME / DESCRIPTION WITHHELD,EXPS2883,10
DBT,ACAS,13/12/2023,PERSONAL EXPENSE,ADVICE,NAME / DESCRIPTION WITHHELD,EXPS2884,187.65
DBT,ACAS,13/12/2023,PERSONAL EXPENSE,ADVICE,NAME / DESCRIPTION WITHHELD,EXPS2884,44.2
DBT,ACAS,13/12/2023,PERSONAL EXPENSE,ADVICE,NAME / DESCRIPTION WITHHELD,EXPS2884,10
DBT,ACAS,13/12/2023,PERSONAL EXPENSE,ADVICE,NAME / DESCRIPTION WITHHELD,EXPS2884,10
DBT,ACAS,13/12/2023,PERSONAL EXPENSE,ADVICE,NAME / DESCRIPTION WITHHELD,EXPS2884,10
DBT,ACAS,13/12/2023,PERSONAL EXPENSE,ADVICE,NAME / DESCRIPTION WITHHELD,EXPS2884,4.5
DBT,ACAS,13/12/2023,PERSONAL EXPENSE,ADVICE,NAME / DESCRIPTION WITHHELD,EXPS2884,42.7
DBT,ACAS,13/12/2023,PERSONAL EXPENSE,ADVICE,NAME / DESCRIPTION WITHHELD,EXPS2884,2.8
DBT,ACAS,13/12/2023,PERSONAL EXPENSE,ADVICE,NAME / DESCRIPTION WITHHELD,EXPS2884,10
DBT,ACAS,13/12/2023,PERSONAL EXPENSE,ADVICE,NAME / DESCRIPTION WITHHELD,EXPS2884,10
DBT,ACAS,13/12/2023,PERSONAL EXPENSE,ADVICE,NAME / DESCRIPTION WITHHELD,EXPS2884,2.8
DBT,ACAS,13/12/2023,PERSONAL EXPENSE,ADVICE,NAME / DESCRIPTION WITHHELD,EXPS2884,5
DBT,ACAS,13/12/2023,PERSONAL EXPENSE,ADVICE,NAME / DESCRIPTION WITHHELD,EXPS2884,35
DBT,ACAS,13/12/2023,PERSONAL EXPENSE,ADVICE,NAME / DESCRIPTION WITHHELD,EXPS2884,10
DBT,ACAS,13/12/2023,PERSONAL EXPENSE,ADVICE,NAME / DESCRIPTION WITHHELD,EXPS2884,10
DBT,ACAS,13/12/2023,PERSONAL EXPENSE,ADVICE,NAME / DESCRIPTION WITHHELD,EXPS2884,18
DBT,ACAS,13/12/2023,PERSONAL EXPENSE,ADVICE,NAME / DESCRIPTION WITHHELD,EXPS2884,25
DBT,ACAS,13/12/2023,PERSONAL EXPENSE,ADVICE,NAME / DESCRIPTION WITHHELD,EXPS2884,10
DBT,ACAS,13/12/2023,PERSONAL EXPENSE,ADVICE,NAME / DESCRIPTION WITHHELD,EXPS2884,10
DBT,ACAS,13/12/2023,PERSONAL EXPENSE,ADVICE,NAME / DESCRIPTION WITHHELD,EXPS2884,31
DBT,ACAS,13/12/2023,PERSONAL EXPENSE,ADVICE,NAME / DESCRIPTION WITHHELD,EXPS2884,8
DBT,ACAS,13/12/2023,PERSONAL EXPENSE,ADVICE,NAME / DESCRIPTION WITHHELD,EXPS2884,5
DBT,ACAS,13/12/2023,PERSONAL EXPENSE,ADVICE,NAME / DESCRIPTION WITHHELD,EXPS2884,35
DBT,ACAS,13/12/2023,PERSONAL EXPENSE,ADVICE,NAME / DESCRIPTION WITHHELD,EXPS2884,25
DBT,ACAS,13/12/2023,PERSONAL EXPENSE,ADVICE,NAME / DESCRIPTION WITHHELD,EXPS2884,10
DBT,ACAS,13/12/2023,PERSONAL EXPENSE,ADVICE,NAME / DESCRIPTION WITHHELD,EXPS2884,10
DBT,ACAS,13/12/2023,PERSONAL EXPENSE,ADVICE,NAME / DESCRIPTION WITHHELD,EXPS2884,10
DBT,ACAS,13/12/2023,PERSONAL EXPENSE,ADVICE,NAME / DESCRIPTION WITHHELD,EXPS2884,10
DBT,ACAS,15/12/2023,PERSONAL EXPENSE,F&G,NAME / DESCRIPTION WITHHELD,EXPS2885,25
DBT,ACAS,15/12/2023,PERSONAL EXPENSE,F&G,NAME / DESCRIPTION WITHHELD,EXPS2885,175
DBT,ACAS,15/12/2023,PERSONAL EXPENSE,F&G,NAME / DESCRIPTION WITHHELD,EXPS2885,10
DBT,ACAS,15/12/2023,PERSONAL EXPENSE,F&G,NAME / DESCRIPTION WITHHELD,EXPS2885,20
DBT,ACAS,15/12/2023,PERSONAL EXPENSE,F&G,NAME / DESCRIPTION WITHHELD,EXPS2885,10
DBT,ACAS,15/12/2023,PERSONAL EXPENSE,F&G,NAME / DESCRIPTION WITHHELD,EXPS2885,7.39
DBT,ACAS,15/12/2023,PERSONAL EXPENSE,F&G,NAME / DESCRIPTION WITHHELD,EXPS2885,23.6
DBT,ACAS,15/12/2023,PERSONAL EXPENSE,F&G,NAME / DESCRIPTION WITHHELD,EXPS2885,5
DBT,ACAS,18/12/2023,PERSONAL EXPENSE,ADVICE,NAME / DESCRIPTION WITHHELD,EXPS2887,230.4
DBT,ACAS,18/12/2023,PERSONAL EXPENSE,ADVICE,NAME / DESCRIPTION WITHHELD,EXPS2887,20
DBT,ACAS,18/12/2023,PERSONAL EXPENSE,ADVICE,NAME / DESCRIPTION WITHHELD,EXPS2887,20
DBT,ACAS,18/12/2023,PERSONAL EXPENSE,ADVICE,NAME / DESCRIPTION WITHHELD,EXPS2890,70.2
DBT,ACAS,18/12/2023,PERSONAL EXPENSE,ADVICE,NAME / DESCRIPTION WITHHELD,EXPS2890,2
DBT,ACAS,18/12/2023,PERSONAL EXPENSE,ADVICE,NAME / DESCRIPTION WITHHELD,EXPS2890,16
DBT,ACAS,18/12/2023,PERSONAL EXPENSE,ADVICE,NAME / DESCRIPTION WITHHELD,EXPS2890,5
DBT,ACAS,18/12/2023,PERSONAL EXPENSE,ADVICE,NAME / DESCRIPTION WITHHELD,EXPS2890,15
DBT,ACAS,18/12/2023,PERSONAL EXPENSE,ADVICE,NAME / DESCRIPTION WITHHELD,EXPS2890,105
DBT,ACAS,18/12/2023,PERSONAL EXPENSE,ADVICE,NAME / DESCRIPTION WITHHELD,EXPS2890,25
DBT,ACAS,18/12/2023,PERSONAL EXPENSE,ADVICE,NAME / DESCRIPTION WITHHELD,EXPS2890,10
DBT,ACAS,18/12/2023,PERSONAL EXPENSE,ADVICE,NAME / DESCRIPTION WITHHELD,EXPS2890,47.8
DBT,ACAS,19/12/2023,PERSONAL EXPENSE,ADVICE,NAME / DESCRIPTION WITHHELD,EXPS2899,424.35
DBT,ACAS,19/12/2023,PERSONAL EXPENSE,ADVICE,NAME / DESCRIPTION WITHHELD,EXPS2899,20.7
DBT,ACAS,19/12/2023,PERSONAL EXPENSE,ADVICE,NAME / DESCRIPTION WITHHELD,EXPS2899,20
DBT,ACAS,19/12/2023,PERSONAL EXPENSE,ADVICE,NAME / DESCRIPTION WITHHELD,EXPS2899,24
DBT,ACAS,19/12/2023,PERSONAL EXPENSE,ADVICE,NAME / DESCRIPTION WITHHELD,EXPS2899,50
DBT,ACAS,19/12/2023,PERSONAL EXPENSE,ADVICE,NAME / DESCRIPTION WITHHELD,EXPS2899,40
DBT,ACAS,19/12/2023,PERSONAL EXPENSE,ADVICE,NAME / DESCRIPTION WITHHELD,EXPS2899,15
DBT,ACAS,19/12/2023,PERSONAL EXPENSE,ADVICE,NAME / DESCRIPTION WITHHELD,EXPS2899,105
DBT,ACAS,19/12/2023,PERSONAL EXPENSE,ADVICE,NAME / DESCRIPTION WITHHELD,EXPS2899,25
DBT,ACAS,22/12/2023,PERSONAL EXPENSE,ODHR,NAME / DESCRIPTION WITHHELD,EXPS2929,200.84
DBT,ACAS,22/12/2023,PERSONAL EXPENSE,ODHR,NAME / DESCRIPTION WITHHELD,EXPS2929,15
DBT,ACAS,22/12/2023,PERSONAL EXPENSE,ODHR,NAME / DESCRIPTION WITHHELD,EXPS2929,10
DBT,ACAS,22/12/2023,PERSONAL EXPENSE,ODHR,NAME / DESCRIPTION WITHHELD,EXPS2929,20
DBT,ACAS,22/12/2023,PERSONAL EXPENSE,ODHR,NAME / DESCRIPTION WITHHELD,EXPS2929,40
DBT,ACAS,22/12/2023,PERSONAL EXPENSE,ODHR,NAME / DESCRIPTION WITHHELD,EXPS2929,105
DBT,ACAS,22/12/2023,PERSONAL EXPENSE,ODHR,NAME / DESCRIPTION WITHHELD,EXPS2929,30
DBT,ACAS,22/12/2023,PERSONAL EXPENSE,ODHR,NAME / DESCRIPTION WITHHELD,EXPS2929,11.8
DBT,ACAS,22/12/2023,PERSONAL EXPENSE,ODHR,NAME / DESCRIPTION WITHHELD,EXPS2929,10
DBT,ACAS,22/12/2023,PERSONAL EXPENSE,ODHR,NAME / DESCRIPTION WITHHELD,EXPS2929,10
DBT,ACAS,22/12/2023,PERSONAL EXPENSE,ODHR,NAME / DESCRIPTION WITHHELD,EXPS2929,13.5
DBT,ACAS,22/12/2023,PERSONAL EXPENSE,ODHR,NAME / DESCRIPTION WITHHELD,EXPS2929,10
DBT,ACAS,28/12/2023,PERSONAL EXPENSE,DISPUTE,NAME / DESCRIPTION WITHHELD,EXPS2934,306.45
DBT,ACAS,28/12/2023,PERSONAL EXPENSE,DISPUTE,NAME / DESCRIPTION WITHHELD,EXPS2934,4
DBT,ACAS,28/12/2023,PERSONAL EXPENSE,DISPUTE,NAME / DESCRIPTION WITHHELD,EXPS2934,34.8
DBT,ACAS,28/12/2023,PERSONAL EXPENSE,DISPUTE,NAME / DESCRIPTION WITHHELD,EXPS2934,30
DBT,ACAS,28/12/2023,PERSONAL EXPENSE,DISPUTE,NAME / DESCRIPTION WITHHELD,EXPS2934,5
DBT,ACAS,28/12/2023,PERSONAL EXPENSE,DISPUTE,NAME / DESCRIPTION WITHHELD,EXPS2934,10
DBT,ACAS,28/12/2023,PERSONAL EXPENSE,DISPUTE,NAME / DESCRIPTION WITHHELD,EXPS2934,70
